{"text_format":"1","workbook":"xlsx","n_sheets":4,"sheets":["تحصيلات من العملاء","مدفوعات للموردين","مصاريف الشركه","الخزينة"],"not_rendered":{"charts":0,"images":0,"macros":1,"external_links":0,"defined_names":0,"comments":0,"pivot_tables":0},"unopened":[],"bounds":{"document_bytes":16777216,"sheet_cells":100000,"rows_first":2000,"rows_last":500,"rows_between":2000,"halvings":0,"cell_chars":16384,"cell_head_chars":4096},"cells_cut":0,"cells_raw":0,"read":"whole","date_system":"1900"}

{"sheet":"تحصيلات من العملاء","index":0,"n_rows":16,"n_cols":9,"rows_kept":16,"cut":false,"hidden":false,"merged":[[4,1,4,3],[3,8,4,15],[7,8,9,15],[12,8,14,15],[3,1,3,3]]}
[]
[]
[null,null,null,null,null,null,null,null,"المطلوب (1):"]
[null,"إجمالى المتحصلات خلال الفترة",null,null,null,null,null,null,"ترحيل بيانات الاعمدة فى شيت تحصيلات من العملاء الى شيت الخزينة بحيث يرحل عمود المبلغ الى عمود المدين فى شيت الخزينة  وعمود اسم العميل الى عمود البيان فى شيت الخزينة وهكذا"]
[null,{"$f":"IF(SUM(E14:E50000),SUM(E14:E50000),\"\")","v":4387}]
[]
[null,null,null,null,null,null,null,null,"المطلوب (2):"]
[null,null,null,null,null,null,null,null,"ترحيل بيانات الاعمدة فى شيت مدفوعات الموردين الى شيت الخزينة بحيث يرحل عمود المبلغ الى عمود الدائن فى شيت الخزينة وعمود اسم المورد الى عمود البيان فى شيت الخزينة وهكذا"]
[]
[]
[]
[null,null,null,null,null,null,null,null,"المطلوب (3):"]
["الحساب","ايصال رقم","التاريخ","اسم العميل","المبلغ",null,null,null,"ترحيل بيانات الاعمدة فى شيت مصاريف الشركة الى شيت الخزينة بحيث يرحل عمود المبلغ الى عمود الدائن فى شيت الخزينة وعمودالبيان الى عمود البيان فى شيت الخزينة وهكذا"]
["الخزينة",101,"2015-01-01","محمد",888]
["الخزينة",102,"2015-01-15","سعد",999]
["الخزينة",103,"2015-02-01","مؤسسة الحسنية",2500]

{"sheet":"مدفوعات للموردين","index":1,"n_rows":16,"n_cols":5,"rows_kept":16,"cut":false,"hidden":false,"merged":[[4,1,4,3],[3,1,3,3]]}
[]
[]
[]
[null,"إجمالى المدفوعات خلال الفترة"]
[null,{"$f":"IF(SUM(E14:E50000),SUM(E14:E50000),\"\")","v":2800}]
[]
[]
[]
[]
[]
[]
[]
["الحساب","ايصال رقم","التاريخ","اسم المورد","المبلغ"]
["الخزينة","201","2015-04-01","حسين",600]
["الخزينة","202","2015-05-15","احمد أبو ريان",700]
["الخزينة","203","2015-07-25","حسن",1500]

{"sheet":"مصاريف الشركه","index":2,"n_rows":16,"n_cols":4,"rows_kept":16,"cut":false,"hidden":false,"merged":[[4,1,4,2],[3,1,3,2]]}
[]
[]
[]
[null,"إجمالى المصروفات خلال الفترة"]
[null,{"$f":"IF(SUM(D14:D11200),SUM(D14:D11200),\"\")","v":375}]
[]
[]
[]
[]
[]
[]
[]
["الحساب","التاريخ","بيان","المبلغ"]
["الخزينة","2015-10-18","شراء مستلزمات طباعة",250]
["الخزينة","2015-11-25","مستلزمات نظافة",75]
["الخزينة","2015-11-30","مصاريف تحفيزية لعامل",50]

{"sheet":"الخزينة","index":3,"n_rows":16350,"n_cols":8,"rows_kept":4500,"cut":true,"hidden":false,"merged":[[10,9,11,9],[10,0,12,0],[10,1,12,1],[10,2,12,2],[10,5,12,5],[10,6,12,6],[10,7,12,7],[10,3,12,3],[10,4,12,4]],"bounds":{"rows_first":2000,"rows_last":500,"rows_between":2000,"halvings":0}}
[]
[]
[]
[]
[]
[]
[]
[]
[]
[]
["م","التاريخ","بـــــــيان","الجهة","رقم السند","مدين","دائن","رصيد"]
[]
[]
[{"$f":"IF(C14=\"\",\"\",ROW()-13)","v":1},"2015-01-01","محمد","تحصيلات العملاء",101,888,null,{"$f":"IF(OR(F14<>0,G14),H13+F14-G14,\"\")","v":888}]
[2,"2015-01-15","سعد","تحصيلات العملاء",102,999,null,1887]
[3,"2015-02-01","مؤسسة الحسنية","تحصيلات العملاء",103,2500,null,4387]
[4,"2015-04-01","حسين","مدفوعات الموردين","201",null,600,3787]
[5,"2015-05-15","احمد أبو ريان","مدفوعات الموردين","202",null,700,3087]
[6,"2015-07-25","حسن","مدفوعات الموردين","203",null,1500,1587]
[7,"2015-10-18","شراء مستلزمات طباعة","مصاريف الشركة","بدون",null,250,1337]
[8,"2015-11-25","مستلزمات نظافة","مصاريف الشركة","بدون",null,75,1262]
[9,"2015-11-30","مصاريف تحفيزية لعامل","مصاريف الشركة","بدون",null,50,1212]
["",null,null,null,null,null,null,""]
["",null,null,null,null,null,null,""]
["",null,null,null,null,null,null,""]
["",null,null,null,null,null,null,""]
["",null,null,null,null,null,null,""]
["",null,null,null,null,null,null,""]
["",null,null,null,null,null,null,""]
["",null,null,null,null,null,null,""]
["",null,null,null,null,null,null,""]
["",null,null,null,null,null,null,""]
["",null,null,null,null,null,null,""]
["",null,null,null,null,null,null,""]
["",null,null,null,null,null,null,""]
["",null,null,null,null,null,null,""]
["",null,null,null,null,null,null,""]
["",null,null,null,null,null,null,""]
["",null,null,null,null,null,null,""]
["",null,null,null,null,null,null,""]
["",null,null,null,null,null,null,""]
["",null,null,null,null,null,null,""]
["",null,null,null,null,null,null,""]
["",null,null,null,null,null,null,""]
["",null,null,null,null,null,null,""]
["",null,null,null,null,null,null,""]
["",null,null,null,null,null,null,""]
["",null,null,null,null,null,null,""]
["",null,null,null,null,null,null,""]
["",null,null,null,null,null,null,""]
["",null,null,null,null,null,null,""]
["",null,null,null,null,null,null,""]
["",null,null,null,null,null,null,""]
["",null,null,null,null,null,null,""]
["",null,null,null,null,null,null,""]
["",null,null,null,null,null,null,""]
["",null,null,null,null,null,null,""]
["",null,null,null,null,null,null,""]
["",null,null,null,null,null,null,""]
["",null,null,null,null,null,null,""]
["",null,null,null,null,null,null,""]
["",null,null,null,null,null,null,""]
["",null,null,null,null,null,null,""]
["",null,null,null,null,null,null,""]
["",null,null,null,null,null,null,""]
["",null,null,null,null,null,null,""]
["",null,null,null,null,null,null,""]
["",null,null,null,null,null,null,""]
["",null,null,null,null,null,null,""]
["",null,null,null,null,null,null,""]
["",null,null,null,null,null,null,""]
["",null,null,null,null,null,null,""]
["",null,null,null,null,null,null,""]
["",null,null,null,null,null,null,""]
["",null,null,null,null,null,null,""]
["",null,null,null,null,null,null,""]
["",null,null,null,null,null,null,""]
["",null,null,null,null,null,null,""]
[{"$f":"IF(C79=\"\",\"\",ROW()-13)","v":""},null,null,null,null,null,null,""]
["",null,null,null,null,null,null,{"$f":"IF(OR(F80<>0,G80),H79+F80-G80,\"\")","v":""}]
["",null,null,null,null,null,null,""]
["",null,null,null,null,null,null,""]
["",null,null,null,null,null,null,""]
["",null,null,null,null,null,null,""]
["",null,null,null,null,null,null,""]
["",null,null,null,null,null,null,""]
["",null,null,null,null,null,null,""]
["",null,null,null,null,null,null,""]
["",null,null,null,null,null,null,""]
["",null,null,null,null,null,null,""]
["",null,null,null,null,null,null,""]
["",null,null,null,null,null,null,""]
["",null,null,null,null,null,null,""]
["",null,null,null,null,null,null,""]
["",null,null,null,null,null,null,""]
["",null,null,null,null,null,null,""]
["",null,null,null,null,null,null,""]
["",null,null,null,null,null,null,""]
["",null,null,null,null,null,null,""]
["",null,null,null,null,null,null,""]
["",null,null,null,null,null,null,""]
["",null,null,null,null,null,null,""]
["",null,null,null,null,null,null,""]
["",null,null,null,null,null,null,""]
["",null,null,null,null,null,null,""]
["",null,null,null,null,null,null,""]
["",null,null,null,null,null,null,""]
["",null,null,null,null,null,null,""]
["",null,null,null,null,null,null,""]
["",null,null,null,null,null,null,""]
["",null,null,null,null,null,null,""]
["",null,null,null,null,null,null,""]
["",null,null,null,null,null,null,""]
["",null,null,null,null,null,null,""]
["",null,null,null,null,null,null,""]
["",null,null,null,null,null,null,""]
["",null,null,null,null,null,null,""]
["",null,null,null,null,null,null,""]
["",null,null,null,null,null,null,""]
["",null,null,null,null,null,null,""]
["",null,null,null,null,null,null,""]
["",null,null,null,null,null,null,""]
["",null,null,null,null,null,null,""]
["",null,null,null,null,null,null,""]
["",null,null,null,null,null,null,""]
["",null,null,null,null,null,null,""]
["",null,null,null,null,null,null,""]
["",null,null,null,null,null,null,""]
["",null,null,null,null,null,null,""]
["",null,null,null,null,null,null,""]
["",null,null,null,null,null,null,""]
["",null,null,null,null,null,null,""]
["",null,null,null,null,null,null,""]
["",null,null,null,null,null,null,""]
["",null,null,null,null,null,null,""]
["",null,null,null,null,null,null,""]
["",null,null,null,null,null,null,""]
["",null,null,null,null,null,null,""]
["",null,null,null,null,null,null,""]
["",null,null,null,null,null,null,""]
["",null,null,null,null,null,null,""]
["",null,null,null,null,null,null,""]
[{"$f":"IF(C143=\"\",\"\",ROW()-13)","v":""},null,null,null,null,null,null,""]
["",null,null,null,null,null,null,{"$f":"IF(OR(F144<>0,G144),H143+F144-G144,\"\")","v":""}]
["",null,null,null,null,null,null,""]
["",null,null,null,null,null,null,""]
["",null,null,null,null,null,null,""]
["",null,null,null,null,null,null,""]
["",null,null,null,null,null,null,""]
["",null,null,null,null,null,null,""]
["",null,null,null,null,null,null,""]
["",null,null,null,null,null,null,""]
["",null,null,null,null,null,null,""]
["",null,null,null,null,null,null,""]
["",null,null,null,null,null,null,""]
["",null,null,null,null,null,null,""]
["",null,null,null,null,null,null,""]
["",null,null,null,null,null,null,""]
["",null,null,null,null,null,null,""]
["",null,null,null,null,null,null,""]
["",null,null,null,null,null,null,""]
["",null,null,null,null,null,null,""]
["",null,null,null,null,null,null,""]
["",null,null,null,null,null,null,""]
["",null,null,null,null,null,null,""]
["",null,null,null,null,null,null,""]
["",null,null,null,null,null,null,""]
["",null,null,null,null,null,null,""]
["",null,null,null,null,null,null,""]
["",null,null,null,null,null,null,""]
["",null,null,null,null,null,null,""]
["",null,null,null,null,null,null,""]
["",null,null,null,null,null,null,""]
["",null,null,null,null,null,null,""]
["",null,null,null,null,null,null,""]
["",null,null,null,null,null,null,""]
["",null,null,null,null,null,null,""]
["",null,null,null,null,null,null,""]
["",null,null,null,null,null,null,""]
["",null,null,null,null,null,null,""]
["",null,null,null,null,null,null,""]
["",null,null,null,null,null,null,""]
["",null,null,null,null,null,null,""]
["",null,null,null,null,null,null,""]
["",null,null,null,null,null,null,""]
["",null,null,null,null,null,null,""]
["",null,null,null,null,null,null,""]
["",null,null,null,null,null,null,""]
["",null,null,null,null,null,null,""]
["",null,null,null,null,null,null,""]
["",null,null,null,null,null,null,""]
["",null,null,null,null,null,null,""]
["",null,null,null,null,null,null,""]
["",null,null,null,null,null,null,""]
["",null,null,null,null,null,null,""]
["",null,null,null,null,null,null,""]
["",null,null,null,null,null,null,""]
["",null,null,null,null,null,null,""]
["",null,null,null,null,null,null,""]
["",null,null,null,null,null,null,""]
["",null,null,null,null,null,null,""]
["",null,null,null,null,null,null,""]
["",null,null,null,null,null,null,""]
["",null,null,null,null,null,null,""]
["",null,null,null,null,null,null,""]
["",null,null,null,null,null,null,""]
[{"$f":"IF(C207=\"\",\"\",ROW()-13)","v":""},null,null,null,null,null,null,""]
["",null,null,null,null,null,null,{"$f":"IF(OR(F208<>0,G208),H207+F208-G208,\"\")","v":""}]
["",null,null,null,null,null,null,""]
["",null,null,null,null,null,null,""]
["",null,null,null,null,null,null,""]
["",null,null,null,null,null,null,""]
["",null,null,null,null,null,null,""]
["",null,null,null,null,null,null,""]
["",null,null,null,null,null,null,""]
["",null,null,null,null,null,null,""]
["",null,null,null,null,null,null,""]
["",null,null,null,null,null,null,""]
["",null,null,null,null,null,null,""]
["",null,null,null,null,null,null,""]
["",null,null,null,null,null,null,""]
["",null,null,null,null,null,null,""]
["",null,null,null,null,null,null,""]
["",null,null,null,null,null,null,""]
["",null,null,null,null,null,null,""]
["",null,null,null,null,null,null,""]
["",null,null,null,null,null,null,""]
["",null,null,null,null,null,null,""]
["",null,null,null,null,null,null,""]
["",null,null,null,null,null,null,""]
["",null,null,null,null,null,null,""]
["",null,null,null,null,null,null,""]
["",null,null,null,null,null,null,""]
["",null,null,null,null,null,null,""]
["",null,null,null,null,null,null,""]
["",null,null,null,null,null,null,""]
["",null,null,null,null,null,null,""]
["",null,null,null,null,null,null,""]
["",null,null,null,null,null,null,""]
["",null,null,null,null,null,null,""]
["",null,null,null,null,null,null,""]
["",null,null,null,null,null,null,""]
["",null,null,null,null,null,null,""]
["",null,null,null,null,null,null,""]
["",null,null,null,null,null,null,""]
["",null,null,null,null,null,null,""]
["",null,null,null,null,null,null,""]
["",null,null,null,null,null,null,""]
["",null,null,null,null,null,null,""]
["",null,null,null,null,null,null,""]
["",null,null,null,null,null,null,""]
["",null,null,null,null,null,null,""]
["",null,null,null,null,null,null,""]
["",null,null,null,null,null,null,""]
["",null,null,null,null,null,null,""]
["",null,null,null,null,null,null,""]
["",null,null,null,null,null,null,""]
["",null,null,null,null,null,null,""]
["",null,null,null,null,null,null,""]
["",null,null,null,null,null,null,""]
["",null,null,null,null,null,null,""]
["",null,null,null,null,null,null,""]
["",null,null,null,null,null,null,""]
["",null,null,null,null,null,null,""]
["",null,null,null,null,null,null,""]
["",null,null,null,null,null,null,""]
["",null,null,null,null,null,null,""]
["",null,null,null,null,null,null,""]
["",null,null,null,null,null,null,""]
["",null,null,null,null,null,null,""]
[{"$f":"IF(C271=\"\",\"\",ROW()-13)","v":""},null,null,null,null,null,null,""]
["",null,null,null,null,null,null,{"$f":"IF(OR(F272<>0,G272),H271+F272-G272,\"\")","v":""}]
["",null,null,null,null,null,null,""]
["",null,null,null,null,null,null,""]
["",null,null,null,null,null,null,""]
["",null,null,null,null,null,null,""]
["",null,null,null,null,null,null,""]
["",null,null,null,null,null,null,""]
["",null,null,null,null,null,null,""]
["",null,null,null,null,null,null,""]
["",null,null,null,null,null,null,""]
["",null,null,null,null,null,null,""]
["",null,null,null,null,null,null,""]
["",null,null,null,null,null,null,""]
["",null,null,null,null,null,null,""]
["",null,null,null,null,null,null,""]
["",null,null,null,null,null,null,""]
["",null,null,null,null,null,null,""]
["",null,null,null,null,null,null,""]
["",null,null,null,null,null,null,""]
["",null,null,null,null,null,null,""]
["",null,null,null,null,null,null,""]
["",null,null,null,null,null,null,""]
["",null,null,null,null,null,null,""]
["",null,null,null,null,null,null,""]
["",null,null,null,null,null,null,""]
["",null,null,null,null,null,null,""]
["",null,null,null,null,null,null,""]
["",null,null,null,null,null,null,""]
["",null,null,null,null,null,null,""]
["",null,null,null,null,null,null,""]
["",null,null,null,null,null,null,""]
["",null,null,null,null,null,null,""]
["",null,null,null,null,null,null,""]
["",null,null,null,null,null,null,""]
["",null,null,null,null,null,null,""]
["",null,null,null,null,null,null,""]
["",null,null,null,null,null,null,""]
["",null,null,null,null,null,null,""]
["",null,null,null,null,null,null,""]
["",null,null,null,null,null,null,""]
["",null,null,null,null,null,null,""]
["",null,null,null,null,null,null,""]
["",null,null,null,null,null,null,""]
["",null,null,null,null,null,null,""]
["",null,null,null,null,null,null,""]
["",null,null,null,null,null,null,""]
["",null,null,null,null,null,null,""]
["",null,null,null,null,null,null,""]
["",null,null,null,null,null,null,""]
["",null,null,null,null,null,null,""]
["",null,null,null,null,null,null,""]
["",null,null,null,null,null,null,""]
["",null,null,null,null,null,null,""]
["",null,null,null,null,null,null,""]
["",null,null,null,null,null,null,""]
["",null,null,null,null,null,null,""]
["",null,null,null,null,null,null,""]
["",null,null,null,null,null,null,""]
["",null,null,null,null,null,null,""]
["",null,null,null,null,null,null,""]
["",null,null,null,null,null,null,""]
["",null,null,null,null,null,null,""]
["",null,null,null,null,null,null,""]
[{"$f":"IF(C335=\"\",\"\",ROW()-13)","v":""},null,null,null,null,null,null,""]
["",null,null,null,null,null,null,{"$f":"IF(OR(F336<>0,G336),H335+F336-G336,\"\")","v":""}]
["",null,null,null,null,null,null,""]
["",null,null,null,null,null,null,""]
["",null,null,null,null,null,null,""]
["",null,null,null,null,null,null,""]
["",null,null,null,null,null,null,""]
["",null,null,null,null,null,null,""]
["",null,null,null,null,null,null,""]
["",null,null,null,null,null,null,""]
["",null,null,null,null,null,null,""]
["",null,null,null,null,null,null,""]
["",null,null,null,null,null,null,""]
["",null,null,null,null,null,null,""]
["",null,null,null,null,null,null,""]
["",null,null,null,null,null,null,""]
["",null,null,null,null,null,null,""]
["",null,null,null,null,null,null,""]
["",null,null,null,null,null,null,""]
["",null,null,null,null,null,null,""]
["",null,null,null,null,null,null,""]
["",null,null,null,null,null,null,""]
["",null,null,null,null,null,null,""]
["",null,null,null,null,null,null,""]
["",null,null,null,null,null,null,""]
["",null,null,null,null,null,null,""]
["",null,null,null,null,null,null,""]
["",null,null,null,null,null,null,""]
["",null,null,null,null,null,null,""]
["",null,null,null,null,null,null,""]
["",null,null,null,null,null,null,""]
["",null,null,null,null,null,null,""]
["",null,null,null,null,null,null,""]
["",null,null,null,null,null,null,""]
["",null,null,null,null,null,null,""]
["",null,null,null,null,null,null,""]
["",null,null,null,null,null,null,""]
["",null,null,null,null,null,null,""]
["",null,null,null,null,null,null,""]
["",null,null,null,null,null,null,""]
["",null,null,null,null,null,null,""]
["",null,null,null,null,null,null,""]
["",null,null,null,null,null,null,""]
["",null,null,null,null,null,null,""]
["",null,null,null,null,null,null,""]
["",null,null,null,null,null,null,""]
["",null,null,null,null,null,null,""]
["",null,null,null,null,null,null,""]
["",null,null,null,null,null,null,""]
["",null,null,null,null,null,null,""]
["",null,null,null,null,null,null,""]
["",null,null,null,null,null,null,""]
["",null,null,null,null,null,null,""]
["",null,null,null,null,null,null,""]
["",null,null,null,null,null,null,""]
["",null,null,null,null,null,null,""]
["",null,null,null,null,null,null,""]
["",null,null,null,null,null,null,""]
["",null,null,null,null,null,null,""]
["",null,null,null,null,null,null,""]
["",null,null,null,null,null,null,""]
["",null,null,null,null,null,null,""]
["",null,null,null,null,null,null,""]
["",null,null,null,null,null,null,""]
[{"$f":"IF(C399=\"\",\"\",ROW()-13)","v":""},null,null,null,null,null,null,""]
["",null,null,null,null,null,null,{"$f":"IF(OR(F400<>0,G400),H399+F400-G400,\"\")","v":""}]
["",null,null,null,null,null,null,""]
["",null,null,null,null,null,null,""]
["",null,null,null,null,null,null,""]
["",null,null,null,null,null,null,""]
["",null,null,null,null,null,null,""]
["",null,null,null,null,null,null,""]
["",null,null,null,null,null,null,""]
["",null,null,null,null,null,null,""]
["",null,null,null,null,null,null,""]
["",null,null,null,null,null,null,""]
["",null,null,null,null,null,null,""]
["",null,null,null,null,null,null,""]
["",null,null,null,null,null,null,""]
["",null,null,null,null,null,null,""]
["",null,null,null,null,null,null,""]
["",null,null,null,null,null,null,""]
["",null,null,null,null,null,null,""]
["",null,null,null,null,null,null,""]
["",null,null,null,null,null,null,""]
["",null,null,null,null,null,null,""]
["",null,null,null,null,null,null,""]
["",null,null,null,null,null,null,""]
["",null,null,null,null,null,null,""]
["",null,null,null,null,null,null,""]
["",null,null,null,null,null,null,""]
["",null,null,null,null,null,null,""]
["",null,null,null,null,null,null,""]
["",null,null,null,null,null,null,""]
["",null,null,null,null,null,null,""]
["",null,null,null,null,null,null,""]
["",null,null,null,null,null,null,""]
["",null,null,null,null,null,null,""]
["",null,null,null,null,null,null,""]
["",null,null,null,null,null,null,""]
["",null,null,null,null,null,null,""]
["",null,null,null,null,null,null,""]
["",null,null,null,null,null,null,""]
["",null,null,null,null,null,null,""]
["",null,null,null,null,null,null,""]
["",null,null,null,null,null,null,""]
["",null,null,null,null,null,null,""]
["",null,null,null,null,null,null,""]
["",null,null,null,null,null,null,""]
["",null,null,null,null,null,null,""]
["",null,null,null,null,null,null,""]
["",null,null,null,null,null,null,""]
["",null,null,null,null,null,null,""]
["",null,null,null,null,null,null,""]
["",null,null,null,null,null,null,""]
["",null,null,null,null,null,null,""]
["",null,null,null,null,null,null,""]
["",null,null,null,null,null,null,""]
["",null,null,null,null,null,null,""]
["",null,null,null,null,null,null,""]
["",null,null,null,null,null,null,""]
["",null,null,null,null,null,null,""]
["",null,null,null,null,null,null,""]
["",null,null,null,null,null,null,""]
["",null,null,null,null,null,null,""]
["",null,null,null,null,null,null,""]
["",null,null,null,null,null,null,""]
["",null,null,null,null,null,null,""]
[{"$f":"IF(C463=\"\",\"\",ROW()-13)","v":""},null,null,null,null,null,null,""]
["",null,null,null,null,null,null,{"$f":"IF(OR(F464<>0,G464),H463+F464-G464,\"\")","v":""}]
["",null,null,null,null,null,null,""]
["",null,null,null,null,null,null,""]
["",null,null,null,null,null,null,""]
["",null,null,null,null,null,null,""]
["",null,null,null,null,null,null,""]
["",null,null,null,null,null,null,""]
["",null,null,null,null,null,null,""]
["",null,null,null,null,null,null,""]
["",null,null,null,null,null,null,""]
["",null,null,null,null,null,null,""]
["",null,null,null,null,null,null,""]
["",null,null,null,null,null,null,""]
["",null,null,null,null,null,null,""]
["",null,null,null,null,null,null,""]
["",null,null,null,null,null,null,""]
["",null,null,null,null,null,null,""]
["",null,null,null,null,null,null,""]
["",null,null,null,null,null,null,""]
["",null,null,null,null,null,null,""]
["",null,null,null,null,null,null,""]
["",null,null,null,null,null,null,""]
["",null,null,null,null,null,null,""]
["",null,null,null,null,null,null,""]
["",null,null,null,null,null,null,""]
["",null,null,null,null,null,null,""]
["",null,null,null,null,null,null,""]
["",null,null,null,null,null,null,""]
["",null,null,null,null,null,null,""]
["",null,null,null,null,null,null,""]
["",null,null,null,null,null,null,""]
["",null,null,null,null,null,null,""]
["",null,null,null,null,null,null,""]
["",null,null,null,null,null,null,""]
["",null,null,null,null,null,null,""]
["",null,null,null,null,null,null,""]
["",null,null,null,null,null,null,""]
["",null,null,null,null,null,null,""]
["",null,null,null,null,null,null,""]
["",null,null,null,null,null,null,""]
["",null,null,null,null,null,null,""]
["",null,null,null,null,null,null,""]
["",null,null,null,null,null,null,""]
["",null,null,null,null,null,null,""]
["",null,null,null,null,null,null,""]
["",null,null,null,null,null,null,""]
["",null,null,null,null,null,null,""]
["",null,null,null,null,null,null,""]
["",null,null,null,null,null,null,""]
["",null,null,null,null,null,null,""]
["",null,null,null,null,null,null,""]
["",null,null,null,null,null,null,""]
["",null,null,null,null,null,null,""]
["",null,null,null,null,null,null,""]
["",null,null,null,null,null,null,""]
["",null,null,null,null,null,null,""]
["",null,null,null,null,null,null,""]
["",null,null,null,null,null,null,""]
["",null,null,null,null,null,null,""]
["",null,null,null,null,null,null,""]
["",null,null,null,null,null,null,""]
["",null,null,null,null,null,null,""]
["",null,null,null,null,null,null,""]
[{"$f":"IF(C527=\"\",\"\",ROW()-13)","v":""},null,null,null,null,null,null,""]
["",null,null,null,null,null,null,{"$f":"IF(OR(F528<>0,G528),H527+F528-G528,\"\")","v":""}]
["",null,null,null,null,null,null,""]
["",null,null,null,null,null,null,""]
["",null,null,null,null,null,null,""]
["",null,null,null,null,null,null,""]
["",null,null,null,null,null,null,""]
["",null,null,null,null,null,null,""]
["",null,null,null,null,null,null,""]
["",null,null,null,null,null,null,""]
["",null,null,null,null,null,null,""]
["",null,null,null,null,null,null,""]
["",null,null,null,null,null,null,""]
["",null,null,null,null,null,null,""]
["",null,null,null,null,null,null,""]
["",null,null,null,null,null,null,""]
["",null,null,null,null,null,null,""]
["",null,null,null,null,null,null,""]
["",null,null,null,null,null,null,""]
["",null,null,null,null,null,null,""]
["",null,null,null,null,null,null,""]
["",null,null,null,null,null,null,""]
["",null,null,null,null,null,null,""]
["",null,null,null,null,null,null,""]
["",null,null,null,null,null,null,""]
["",null,null,null,null,null,null,""]
["",null,null,null,null,null,null,""]
["",null,null,null,null,null,null,""]
["",null,null,null,null,null,null,""]
["",null,null,null,null,null,null,""]
["",null,null,null,null,null,null,""]
["",null,null,null,null,null,null,""]
["",null,null,null,null,null,null,""]
["",null,null,null,null,null,null,""]
["",null,null,null,null,null,null,""]
["",null,null,null,null,null,null,""]
["",null,null,null,null,null,null,""]
["",null,null,null,null,null,null,""]
["",null,null,null,null,null,null,""]
["",null,null,null,null,null,null,""]
["",null,null,null,null,null,null,""]
["",null,null,null,null,null,null,""]
["",null,null,null,null,null,null,""]
["",null,null,null,null,null,null,""]
["",null,null,null,null,null,null,""]
["",null,null,null,null,null,null,""]
["",null,null,null,null,null,null,""]
["",null,null,null,null,null,null,""]
["",null,null,null,null,null,null,""]
["",null,null,null,null,null,null,""]
["",null,null,null,null,null,null,""]
["",null,null,null,null,null,null,""]
["",null,null,null,null,null,null,""]
["",null,null,null,null,null,null,""]
["",null,null,null,null,null,null,""]
["",null,null,null,null,null,null,""]
["",null,null,null,null,null,null,""]
["",null,null,null,null,null,null,""]
["",null,null,null,null,null,null,""]
["",null,null,null,null,null,null,""]
["",null,null,null,null,null,null,""]
["",null,null,null,null,null,null,""]
["",null,null,null,null,null,null,""]
["",null,null,null,null,null,null,""]
[{"$f":"IF(C591=\"\",\"\",ROW()-13)","v":""},null,null,null,null,null,null,""]
["",null,null,null,null,null,null,{"$f":"IF(OR(F592<>0,G592),H591+F592-G592,\"\")","v":""}]
["",null,null,null,null,null,null,""]
["",null,null,null,null,null,null,""]
["",null,null,null,null,null,null,""]
["",null,null,null,null,null,null,""]
["",null,null,null,null,null,null,""]
["",null,null,null,null,null,null,""]
["",null,null,null,null,null,null,""]
["",null,null,null,null,null,null,""]
["",null,null,null,null,null,null,""]
["",null,null,null,null,null,null,""]
["",null,null,null,null,null,null,""]
["",null,null,null,null,null,null,""]
["",null,null,null,null,null,null,""]
["",null,null,null,null,null,null,""]
["",null,null,null,null,null,null,""]
["",null,null,null,null,null,null,""]
["",null,null,null,null,null,null,""]
["",null,null,null,null,null,null,""]
["",null,null,null,null,null,null,""]
["",null,null,null,null,null,null,""]
["",null,null,null,null,null,null,""]
["",null,null,null,null,null,null,""]
["",null,null,null,null,null,null,""]
["",null,null,null,null,null,null,""]
["",null,null,null,null,null,null,""]
["",null,null,null,null,null,null,""]
["",null,null,null,null,null,null,""]
["",null,null,null,null,null,null,""]
["",null,null,null,null,null,null,""]
["",null,null,null,null,null,null,""]
["",null,null,null,null,null,null,""]
["",null,null,null,null,null,null,""]
["",null,null,null,null,null,null,""]
["",null,null,null,null,null,null,""]
["",null,null,null,null,null,null,""]
["",null,null,null,null,null,null,""]
["",null,null,null,null,null,null,""]
["",null,null,null,null,null,null,""]
["",null,null,null,null,null,null,""]
["",null,null,null,null,null,null,""]
["",null,null,null,null,null,null,""]
["",null,null,null,null,null,null,""]
["",null,null,null,null,null,null,""]
["",null,null,null,null,null,null,""]
["",null,null,null,null,null,null,""]
["",null,null,null,null,null,null,""]
["",null,null,null,null,null,null,""]
["",null,null,null,null,null,null,""]
["",null,null,null,null,null,null,""]
["",null,null,null,null,null,null,""]
["",null,null,null,null,null,null,""]
["",null,null,null,null,null,null,""]
["",null,null,null,null,null,null,""]
["",null,null,null,null,null,null,""]
["",null,null,null,null,null,null,""]
["",null,null,null,null,null,null,""]
["",null,null,null,null,null,null,""]
["",null,null,null,null,null,null,""]
["",null,null,null,null,null,null,""]
["",null,null,null,null,null,null,""]
["",null,null,null,null,null,null,""]
["",null,null,null,null,null,null,""]
[{"$f":"IF(C655=\"\",\"\",ROW()-13)","v":""},null,null,null,null,null,null,""]
["",null,null,null,null,null,null,{"$f":"IF(OR(F656<>0,G656),H655+F656-G656,\"\")","v":""}]
["",null,null,null,null,null,null,""]
["",null,null,null,null,null,null,""]
["",null,null,null,null,null,null,""]
["",null,null,null,null,null,null,""]
["",null,null,null,null,null,null,""]
["",null,null,null,null,null,null,""]
["",null,null,null,null,null,null,""]
["",null,null,null,null,null,null,""]
["",null,null,null,null,null,null,""]
["",null,null,null,null,null,null,""]
["",null,null,null,null,null,null,""]
["",null,null,null,null,null,null,""]
["",null,null,null,null,null,null,""]
["",null,null,null,null,null,null,""]
["",null,null,null,null,null,null,""]
["",null,null,null,null,null,null,""]
["",null,null,null,null,null,null,""]
["",null,null,null,null,null,null,""]
["",null,null,null,null,null,null,""]
["",null,null,null,null,null,null,""]
["",null,null,null,null,null,null,""]
["",null,null,null,null,null,null,""]
["",null,null,null,null,null,null,""]
["",null,null,null,null,null,null,""]
["",null,null,null,null,null,null,""]
["",null,null,null,null,null,null,""]
["",null,null,null,null,null,null,""]
["",null,null,null,null,null,null,""]
["",null,null,null,null,null,null,""]
["",null,null,null,null,null,null,""]
["",null,null,null,null,null,null,""]
["",null,null,null,null,null,null,""]
["",null,null,null,null,null,null,""]
["",null,null,null,null,null,null,""]
["",null,null,null,null,null,null,""]
["",null,null,null,null,null,null,""]
["",null,null,null,null,null,null,""]
["",null,null,null,null,null,null,""]
["",null,null,null,null,null,null,""]
["",null,null,null,null,null,null,""]
["",null,null,null,null,null,null,""]
["",null,null,null,null,null,null,""]
["",null,null,null,null,null,null,""]
["",null,null,null,null,null,null,""]
["",null,null,null,null,null,null,""]
["",null,null,null,null,null,null,""]
["",null,null,null,null,null,null,""]
["",null,null,null,null,null,null,""]
["",null,null,null,null,null,null,""]
["",null,null,null,null,null,null,""]
["",null,null,null,null,null,null,""]
["",null,null,null,null,null,null,""]
["",null,null,null,null,null,null,""]
["",null,null,null,null,null,null,""]
["",null,null,null,null,null,null,""]
["",null,null,null,null,null,null,""]
["",null,null,null,null,null,null,""]
["",null,null,null,null,null,null,""]
["",null,null,null,null,null,null,""]
["",null,null,null,null,null,null,""]
["",null,null,null,null,null,null,""]
["",null,null,null,null,null,null,""]
[{"$f":"IF(C719=\"\",\"\",ROW()-13)","v":""},null,null,null,null,null,null,""]
["",null,null,null,null,null,null,{"$f":"IF(OR(F720<>0,G720),H719+F720-G720,\"\")","v":""}]
["",null,null,null,null,null,null,""]
["",null,null,null,null,null,null,""]
["",null,null,null,null,null,null,""]
["",null,null,null,null,null,null,""]
["",null,null,null,null,null,null,""]
["",null,null,null,null,null,null,""]
["",null,null,null,null,null,null,""]
["",null,null,null,null,null,null,""]
["",null,null,null,null,null,null,""]
["",null,null,null,null,null,null,""]
["",null,null,null,null,null,null,""]
["",null,null,null,null,null,null,""]
["",null,null,null,null,null,null,""]
["",null,null,null,null,null,null,""]
["",null,null,null,null,null,null,""]
["",null,null,null,null,null,null,""]
["",null,null,null,null,null,null,""]
["",null,null,null,null,null,null,""]
["",null,null,null,null,null,null,""]
["",null,null,null,null,null,null,""]
["",null,null,null,null,null,null,""]
["",null,null,null,null,null,null,""]
["",null,null,null,null,null,null,""]
["",null,null,null,null,null,null,""]
["",null,null,null,null,null,null,""]
["",null,null,null,null,null,null,""]
["",null,null,null,null,null,null,""]
["",null,null,null,null,null,null,""]
["",null,null,null,null,null,null,""]
["",null,null,null,null,null,null,""]
["",null,null,null,null,null,null,""]
["",null,null,null,null,null,null,""]
["",null,null,null,null,null,null,""]
["",null,null,null,null,null,null,""]
["",null,null,null,null,null,null,""]
["",null,null,null,null,null,null,""]
["",null,null,null,null,null,null,""]
["",null,null,null,null,null,null,""]
["",null,null,null,null,null,null,""]
["",null,null,null,null,null,null,""]
["",null,null,null,null,null,null,""]
["",null,null,null,null,null,null,""]
["",null,null,null,null,null,null,""]
["",null,null,null,null,null,null,""]
["",null,null,null,null,null,null,""]
["",null,null,null,null,null,null,""]
["",null,null,null,null,null,null,""]
["",null,null,null,null,null,null,""]
["",null,null,null,null,null,null,""]
["",null,null,null,null,null,null,""]
["",null,null,null,null,null,null,""]
["",null,null,null,null,null,null,""]
["",null,null,null,null,null,null,""]
["",null,null,null,null,null,null,""]
["",null,null,null,null,null,null,""]
["",null,null,null,null,null,null,""]
["",null,null,null,null,null,null,""]
["",null,null,null,null,null,null,""]
["",null,null,null,null,null,null,""]
["",null,null,null,null,null,null,""]
["",null,null,null,null,null,null,""]
["",null,null,null,null,null,null,""]
[{"$f":"IF(C783=\"\",\"\",ROW()-13)","v":""},null,null,null,null,null,null,""]
["",null,null,null,null,null,null,{"$f":"IF(OR(F784<>0,G784),H783+F784-G784,\"\")","v":""}]
["",null,null,null,null,null,null,""]
["",null,null,null,null,null,null,""]
["",null,null,null,null,null,null,""]
["",null,null,null,null,null,null,""]
["",null,null,null,null,null,null,""]
["",null,null,null,null,null,null,""]
["",null,null,null,null,null,null,""]
["",null,null,null,null,null,null,""]
["",null,null,null,null,null,null,""]
["",null,null,null,null,null,null,""]
["",null,null,null,null,null,null,""]
["",null,null,null,null,null,null,""]
["",null,null,null,null,null,null,""]
["",null,null,null,null,null,null,""]
["",null,null,null,null,null,null,""]
["",null,null,null,null,null,null,""]
["",null,null,null,null,null,null,""]
["",null,null,null,null,null,null,""]
["",null,null,null,null,null,null,""]
["",null,null,null,null,null,null,""]
["",null,null,null,null,null,null,""]
["",null,null,null,null,null,null,""]
["",null,null,null,null,null,null,""]
["",null,null,null,null,null,null,""]
["",null,null,null,null,null,null,""]
["",null,null,null,null,null,null,""]
["",null,null,null,null,null,null,""]
["",null,null,null,null,null,null,""]
["",null,null,null,null,null,null,""]
["",null,null,null,null,null,null,""]
["",null,null,null,null,null,null,""]
["",null,null,null,null,null,null,""]
["",null,null,null,null,null,null,""]
["",null,null,null,null,null,null,""]
["",null,null,null,null,null,null,""]
["",null,null,null,null,null,null,""]
["",null,null,null,null,null,null,""]
["",null,null,null,null,null,null,""]
["",null,null,null,null,null,null,""]
["",null,null,null,null,null,null,""]
["",null,null,null,null,null,null,""]
["",null,null,null,null,null,null,""]
["",null,null,null,null,null,null,""]
["",null,null,null,null,null,null,""]
["",null,null,null,null,null,null,""]
["",null,null,null,null,null,null,""]
["",null,null,null,null,null,null,""]
["",null,null,null,null,null,null,""]
["",null,null,null,null,null,null,""]
["",null,null,null,null,null,null,""]
["",null,null,null,null,null,null,""]
["",null,null,null,null,null,null,""]
["",null,null,null,null,null,null,""]
["",null,null,null,null,null,null,""]
["",null,null,null,null,null,null,""]
["",null,null,null,null,null,null,""]
["",null,null,null,null,null,null,""]
["",null,null,null,null,null,null,""]
["",null,null,null,null,null,null,""]
["",null,null,null,null,null,null,""]
["",null,null,null,null,null,null,""]
["",null,null,null,null,null,null,""]
[{"$f":"IF(C847=\"\",\"\",ROW()-13)","v":""},null,null,null,null,null,null,""]
["",null,null,null,null,null,null,{"$f":"IF(OR(F848<>0,G848),H847+F848-G848,\"\")","v":""}]
["",null,null,null,null,null,null,""]
["",null,null,null,null,null,null,""]
["",null,null,null,null,null,null,""]
["",null,null,null,null,null,null,""]
["",null,null,null,null,null,null,""]
["",null,null,null,null,null,null,""]
["",null,null,null,null,null,null,""]
["",null,null,null,null,null,null,""]
["",null,null,null,null,null,null,""]
["",null,null,null,null,null,null,""]
["",null,null,null,null,null,null,""]
["",null,null,null,null,null,null,""]
["",null,null,null,null,null,null,""]
["",null,null,null,null,null,null,""]
["",null,null,null,null,null,null,""]
["",null,null,null,null,null,null,""]
["",null,null,null,null,null,null,""]
["",null,null,null,null,null,null,""]
["",null,null,null,null,null,null,""]
["",null,null,null,null,null,null,""]
["",null,null,null,null,null,null,""]
["",null,null,null,null,null,null,""]
["",null,null,null,null,null,null,""]
["",null,null,null,null,null,null,""]
["",null,null,null,null,null,null,""]
["",null,null,null,null,null,null,""]
["",null,null,null,null,null,null,""]
["",null,null,null,null,null,null,""]
["",null,null,null,null,null,null,""]
["",null,null,null,null,null,null,""]
["",null,null,null,null,null,null,""]
["",null,null,null,null,null,null,""]
["",null,null,null,null,null,null,""]
["",null,null,null,null,null,null,""]
["",null,null,null,null,null,null,""]
["",null,null,null,null,null,null,""]
["",null,null,null,null,null,null,""]
["",null,null,null,null,null,null,""]
["",null,null,null,null,null,null,""]
["",null,null,null,null,null,null,""]
["",null,null,null,null,null,null,""]
["",null,null,null,null,null,null,""]
["",null,null,null,null,null,null,""]
["",null,null,null,null,null,null,""]
["",null,null,null,null,null,null,""]
["",null,null,null,null,null,null,""]
["",null,null,null,null,null,null,""]
["",null,null,null,null,null,null,""]
["",null,null,null,null,null,null,""]
["",null,null,null,null,null,null,""]
["",null,null,null,null,null,null,""]
["",null,null,null,null,null,null,""]
["",null,null,null,null,null,null,""]
["",null,null,null,null,null,null,""]
["",null,null,null,null,null,null,""]
["",null,null,null,null,null,null,""]
["",null,null,null,null,null,null,""]
["",null,null,null,null,null,null,""]
["",null,null,null,null,null,null,""]
["",null,null,null,null,null,null,""]
["",null,null,null,null,null,null,""]
["",null,null,null,null,null,null,""]
[{"$f":"IF(C911=\"\",\"\",ROW()-13)","v":""},null,null,null,null,null,null,""]
["",null,null,null,null,null,null,{"$f":"IF(OR(F912<>0,G912),H911+F912-G912,\"\")","v":""}]
["",null,null,null,null,null,null,""]
["",null,null,null,null,null,null,""]
["",null,null,null,null,null,null,""]
["",null,null,null,null,null,null,""]
["",null,null,null,null,null,null,""]
["",null,null,null,null,null,null,""]
["",null,null,null,null,null,null,""]
["",null,null,null,null,null,null,""]
["",null,null,null,null,null,null,""]
["",null,null,null,null,null,null,""]
["",null,null,null,null,null,null,""]
["",null,null,null,null,null,null,""]
["",null,null,null,null,null,null,""]
["",null,null,null,null,null,null,""]
["",null,null,null,null,null,null,""]
["",null,null,null,null,null,null,""]
["",null,null,null,null,null,null,""]
["",null,null,null,null,null,null,""]
["",null,null,null,null,null,null,""]
["",null,null,null,null,null,null,""]
["",null,null,null,null,null,null,""]
["",null,null,null,null,null,null,""]
["",null,null,null,null,null,null,""]
["",null,null,null,null,null,null,""]
["",null,null,null,null,null,null,""]
["",null,null,null,null,null,null,""]
["",null,null,null,null,null,null,""]
["",null,null,null,null,null,null,""]
["",null,null,null,null,null,null,""]
["",null,null,null,null,null,null,""]
["",null,null,null,null,null,null,""]
["",null,null,null,null,null,null,""]
["",null,null,null,null,null,null,""]
["",null,null,null,null,null,null,""]
["",null,null,null,null,null,null,""]
["",null,null,null,null,null,null,""]
["",null,null,null,null,null,null,""]
["",null,null,null,null,null,null,""]
["",null,null,null,null,null,null,""]
["",null,null,null,null,null,null,""]
["",null,null,null,null,null,null,""]
["",null,null,null,null,null,null,""]
["",null,null,null,null,null,null,""]
["",null,null,null,null,null,null,""]
["",null,null,null,null,null,null,""]
["",null,null,null,null,null,null,""]
["",null,null,null,null,null,null,""]
["",null,null,null,null,null,null,""]
["",null,null,null,null,null,null,""]
["",null,null,null,null,null,null,""]
["",null,null,null,null,null,null,""]
["",null,null,null,null,null,null,""]
["",null,null,null,null,null,null,""]
["",null,null,null,null,null,null,""]
["",null,null,null,null,null,null,""]
["",null,null,null,null,null,null,""]
["",null,null,null,null,null,null,""]
["",null,null,null,null,null,null,""]
["",null,null,null,null,null,null,""]
["",null,null,null,null,null,null,""]
["",null,null,null,null,null,null,""]
["",null,null,null,null,null,null,""]
[{"$f":"IF(C975=\"\",\"\",ROW()-13)","v":""},null,null,null,null,null,null,""]
["",null,null,null,null,null,null,{"$f":"IF(OR(F976<>0,G976),H975+F976-G976,\"\")","v":""}]
["",null,null,null,null,null,null,""]
["",null,null,null,null,null,null,""]
["",null,null,null,null,null,null,""]
["",null,null,null,null,null,null,""]
["",null,null,null,null,null,null,""]
["",null,null,null,null,null,null,""]
["",null,null,null,null,null,null,""]
["",null,null,null,null,null,null,""]
["",null,null,null,null,null,null,""]
["",null,null,null,null,null,null,""]
["",null,null,null,null,null,null,""]
["",null,null,null,null,null,null,""]
["",null,null,null,null,null,null,""]
["",null,null,null,null,null,null,""]
["",null,null,null,null,null,null,""]
["",null,null,null,null,null,null,""]
["",null,null,null,null,null,null,""]
["",null,null,null,null,null,null,""]
["",null,null,null,null,null,null,""]
["",null,null,null,null,null,null,""]
["",null,null,null,null,null,null,""]
["",null,null,null,null,null,null,""]
["",null,null,null,null,null,null,""]
["",null,null,null,null,null,null,""]
["",null,null,null,null,null,null,""]
["",null,null,null,null,null,null,""]
["",null,null,null,null,null,null,""]
["",null,null,null,null,null,null,""]
["",null,null,null,null,null,null,""]
["",null,null,null,null,null,null,""]
["",null,null,null,null,null,null,""]
["",null,null,null,null,null,null,""]
["",null,null,null,null,null,null,""]
["",null,null,null,null,null,null,""]
["",null,null,null,null,null,null,""]
["",null,null,null,null,null,null,""]
["",null,null,null,null,null,null,""]
["",null,null,null,null,null,null,""]
["",null,null,null,null,null,null,""]
["",null,null,null,null,null,null,""]
["",null,null,null,null,null,null,""]
["",null,null,null,null,null,null,""]
["",null,null,null,null,null,null,""]
["",null,null,null,null,null,null,""]
["",null,null,null,null,null,null,""]
["",null,null,null,null,null,null,""]
["",null,null,null,null,null,null,""]
["",null,null,null,null,null,null,""]
["",null,null,null,null,null,null,""]
["",null,null,null,null,null,null,""]
["",null,null,null,null,null,null,""]
["",null,null,null,null,null,null,""]
["",null,null,null,null,null,null,""]
["",null,null,null,null,null,null,""]
["",null,null,null,null,null,null,""]
["",null,null,null,null,null,null,""]
["",null,null,null,null,null,null,""]
["",null,null,null,null,null,null,""]
["",null,null,null,null,null,null,""]
["",null,null,null,null,null,null,""]
["",null,null,null,null,null,null,""]
["",null,null,null,null,null,null,""]
[{"$f":"IF(C1039=\"\",\"\",ROW()-13)","v":""},null,null,null,null,null,null,""]
["",null,null,null,null,null,null,{"$f":"IF(OR(F1040<>0,G1040),H1039+F1040-G1040,\"\")","v":""}]
["",null,null,null,null,null,null,""]
["",null,null,null,null,null,null,""]
["",null,null,null,null,null,null,""]
["",null,null,null,null,null,null,""]
["",null,null,null,null,null,null,""]
["",null,null,null,null,null,null,""]
["",null,null,null,null,null,null,""]
["",null,null,null,null,null,null,""]
["",null,null,null,null,null,null,""]
["",null,null,null,null,null,null,""]
["",null,null,null,null,null,null,""]
["",null,null,null,null,null,null,""]
["",null,null,null,null,null,null,""]
["",null,null,null,null,null,null,""]
["",null,null,null,null,null,null,""]
["",null,null,null,null,null,null,""]
["",null,null,null,null,null,null,""]
["",null,null,null,null,null,null,""]
["",null,null,null,null,null,null,""]
["",null,null,null,null,null,null,""]
["",null,null,null,null,null,null,""]
["",null,null,null,null,null,null,""]
["",null,null,null,null,null,null,""]
["",null,null,null,null,null,null,""]
["",null,null,null,null,null,null,""]
["",null,null,null,null,null,null,""]
["",null,null,null,null,null,null,""]
["",null,null,null,null,null,null,""]
["",null,null,null,null,null,null,""]
["",null,null,null,null,null,null,""]
["",null,null,null,null,null,null,""]
["",null,null,null,null,null,null,""]
["",null,null,null,null,null,null,""]
["",null,null,null,null,null,null,""]
["",null,null,null,null,null,null,""]
["",null,null,null,null,null,null,""]
["",null,null,null,null,null,null,""]
["",null,null,null,null,null,null,""]
["",null,null,null,null,null,null,""]
["",null,null,null,null,null,null,""]
["",null,null,null,null,null,null,""]
["",null,null,null,null,null,null,""]
["",null,null,null,null,null,null,""]
["",null,null,null,null,null,null,""]
["",null,null,null,null,null,null,""]
["",null,null,null,null,null,null,""]
["",null,null,null,null,null,null,""]
["",null,null,null,null,null,null,""]
["",null,null,null,null,null,null,""]
["",null,null,null,null,null,null,""]
["",null,null,null,null,null,null,""]
["",null,null,null,null,null,null,""]
["",null,null,null,null,null,null,""]
["",null,null,null,null,null,null,""]
["",null,null,null,null,null,null,""]
["",null,null,null,null,null,null,""]
["",null,null,null,null,null,null,""]
["",null,null,null,null,null,null,""]
["",null,null,null,null,null,null,""]
["",null,null,null,null,null,null,""]
["",null,null,null,null,null,null,""]
["",null,null,null,null,null,null,""]
[{"$f":"IF(C1103=\"\",\"\",ROW()-13)","v":""},null,null,null,null,null,null,""]
["",null,null,null,null,null,null,{"$f":"IF(OR(F1104<>0,G1104),H1103+F1104-G1104,\"\")","v":""}]
["",null,null,null,null,null,null,""]
["",null,null,null,null,null,null,""]
["",null,null,null,null,null,null,""]
["",null,null,null,null,null,null,""]
["",null,null,null,null,null,null,""]
["",null,null,null,null,null,null,""]
["",null,null,null,null,null,null,""]
["",null,null,null,null,null,null,""]
["",null,null,null,null,null,null,""]
["",null,null,null,null,null,null,""]
["",null,null,null,null,null,null,""]
["",null,null,null,null,null,null,""]
["",null,null,null,null,null,null,""]
["",null,null,null,null,null,null,""]
["",null,null,null,null,null,null,""]
["",null,null,null,null,null,null,""]
["",null,null,null,null,null,null,""]
["",null,null,null,null,null,null,""]
["",null,null,null,null,null,null,""]
["",null,null,null,null,null,null,""]
["",null,null,null,null,null,null,""]
["",null,null,null,null,null,null,""]
["",null,null,null,null,null,null,""]
["",null,null,null,null,null,null,""]
["",null,null,null,null,null,null,""]
["",null,null,null,null,null,null,""]
["",null,null,null,null,null,null,""]
["",null,null,null,null,null,null,""]
["",null,null,null,null,null,null,""]
["",null,null,null,null,null,null,""]
["",null,null,null,null,null,null,""]
["",null,null,null,null,null,null,""]
["",null,null,null,null,null,null,""]
["",null,null,null,null,null,null,""]
["",null,null,null,null,null,null,""]
["",null,null,null,null,null,null,""]
["",null,null,null,null,null,null,""]
["",null,null,null,null,null,null,""]
["",null,null,null,null,null,null,""]
["",null,null,null,null,null,null,""]
["",null,null,null,null,null,null,""]
["",null,null,null,null,null,null,""]
["",null,null,null,null,null,null,""]
["",null,null,null,null,null,null,""]
["",null,null,null,null,null,null,""]
["",null,null,null,null,null,null,""]
["",null,null,null,null,null,null,""]
["",null,null,null,null,null,null,""]
["",null,null,null,null,null,null,""]
["",null,null,null,null,null,null,""]
["",null,null,null,null,null,null,""]
["",null,null,null,null,null,null,""]
["",null,null,null,null,null,null,""]
["",null,null,null,null,null,null,""]
["",null,null,null,null,null,null,""]
["",null,null,null,null,null,null,""]
["",null,null,null,null,null,null,""]
["",null,null,null,null,null,null,""]
["",null,null,null,null,null,null,""]
["",null,null,null,null,null,null,""]
["",null,null,null,null,null,null,""]
["",null,null,null,null,null,null,""]
[{"$f":"IF(C1167=\"\",\"\",ROW()-13)","v":""},null,null,null,null,null,null,""]
["",null,null,null,null,null,null,{"$f":"IF(OR(F1168<>0,G1168),H1167+F1168-G1168,\"\")","v":""}]
["",null,null,null,null,null,null,""]
["",null,null,null,null,null,null,""]
["",null,null,null,null,null,null,""]
["",null,null,null,null,null,null,""]
["",null,null,null,null,null,null,""]
["",null,null,null,null,null,null,""]
["",null,null,null,null,null,null,""]
["",null,null,null,null,null,null,""]
["",null,null,null,null,null,null,""]
["",null,null,null,null,null,null,""]
["",null,null,null,null,null,null,""]
["",null,null,null,null,null,null,""]
["",null,null,null,null,null,null,""]
["",null,null,null,null,null,null,""]
["",null,null,null,null,null,null,""]
["",null,null,null,null,null,null,""]
["",null,null,null,null,null,null,""]
["",null,null,null,null,null,null,""]
["",null,null,null,null,null,null,""]
["",null,null,null,null,null,null,""]
["",null,null,null,null,null,null,""]
["",null,null,null,null,null,null,""]
["",null,null,null,null,null,null,""]
["",null,null,null,null,null,null,""]
["",null,null,null,null,null,null,""]
["",null,null,null,null,null,null,""]
["",null,null,null,null,null,null,""]
["",null,null,null,null,null,null,""]
["",null,null,null,null,null,null,""]
["",null,null,null,null,null,null,""]
["",null,null,null,null,null,null,""]
["",null,null,null,null,null,null,""]
["",null,null,null,null,null,null,""]
["",null,null,null,null,null,null,""]
["",null,null,null,null,null,null,""]
["",null,null,null,null,null,null,""]
["",null,null,null,null,null,null,""]
["",null,null,null,null,null,null,""]
["",null,null,null,null,null,null,""]
["",null,null,null,null,null,null,""]
["",null,null,null,null,null,null,""]
["",null,null,null,null,null,null,""]
["",null,null,null,null,null,null,""]
["",null,null,null,null,null,null,""]
["",null,null,null,null,null,null,""]
["",null,null,null,null,null,null,""]
["",null,null,null,null,null,null,""]
["",null,null,null,null,null,null,""]
["",null,null,null,null,null,null,""]
["",null,null,null,null,null,null,""]
["",null,null,null,null,null,null,""]
["",null,null,null,null,null,null,""]
["",null,null,null,null,null,null,""]
["",null,null,null,null,null,null,""]
["",null,null,null,null,null,null,""]
["",null,null,null,null,null,null,""]
["",null,null,null,null,null,null,""]
["",null,null,null,null,null,null,""]
["",null,null,null,null,null,null,""]
["",null,null,null,null,null,null,""]
["",null,null,null,null,null,null,""]
["",null,null,null,null,null,null,""]
[{"$f":"IF(C1231=\"\",\"\",ROW()-13)","v":""},null,null,null,null,null,null,""]
["",null,null,null,null,null,null,{"$f":"IF(OR(F1232<>0,G1232),H1231+F1232-G1232,\"\")","v":""}]
["",null,null,null,null,null,null,""]
["",null,null,null,null,null,null,""]
["",null,null,null,null,null,null,""]
["",null,null,null,null,null,null,""]
["",null,null,null,null,null,null,""]
["",null,null,null,null,null,null,""]
["",null,null,null,null,null,null,""]
["",null,null,null,null,null,null,""]
["",null,null,null,null,null,null,""]
["",null,null,null,null,null,null,""]
["",null,null,null,null,null,null,""]
["",null,null,null,null,null,null,""]
["",null,null,null,null,null,null,""]
["",null,null,null,null,null,null,""]
["",null,null,null,null,null,null,""]
["",null,null,null,null,null,null,""]
["",null,null,null,null,null,null,""]
["",null,null,null,null,null,null,""]
["",null,null,null,null,null,null,""]
["",null,null,null,null,null,null,""]
["",null,null,null,null,null,null,""]
["",null,null,null,null,null,null,""]
["",null,null,null,null,null,null,""]
["",null,null,null,null,null,null,""]
["",null,null,null,null,null,null,""]
["",null,null,null,null,null,null,""]
["",null,null,null,null,null,null,""]
["",null,null,null,null,null,null,""]
["",null,null,null,null,null,null,""]
["",null,null,null,null,null,null,""]
["",null,null,null,null,null,null,""]
["",null,null,null,null,null,null,""]
["",null,null,null,null,null,null,""]
["",null,null,null,null,null,null,""]
["",null,null,null,null,null,null,""]
["",null,null,null,null,null,null,""]
["",null,null,null,null,null,null,""]
["",null,null,null,null,null,null,""]
["",null,null,null,null,null,null,""]
["",null,null,null,null,null,null,""]
["",null,null,null,null,null,null,""]
["",null,null,null,null,null,null,""]
["",null,null,null,null,null,null,""]
["",null,null,null,null,null,null,""]
["",null,null,null,null,null,null,""]
["",null,null,null,null,null,null,""]
["",null,null,null,null,null,null,""]
["",null,null,null,null,null,null,""]
["",null,null,null,null,null,null,""]
["",null,null,null,null,null,null,""]
["",null,null,null,null,null,null,""]
["",null,null,null,null,null,null,""]
["",null,null,null,null,null,null,""]
["",null,null,null,null,null,null,""]
["",null,null,null,null,null,null,""]
["",null,null,null,null,null,null,""]
["",null,null,null,null,null,null,""]
["",null,null,null,null,null,null,""]
["",null,null,null,null,null,null,""]
["",null,null,null,null,null,null,""]
["",null,null,null,null,null,null,""]
["",null,null,null,null,null,null,""]
[{"$f":"IF(C1295=\"\",\"\",ROW()-13)","v":""},null,null,null,null,null,null,""]
["",null,null,null,null,null,null,{"$f":"IF(OR(F1296<>0,G1296),H1295+F1296-G1296,\"\")","v":""}]
["",null,null,null,null,null,null,""]
["",null,null,null,null,null,null,""]
["",null,null,null,null,null,null,""]
["",null,null,null,null,null,null,""]
["",null,null,null,null,null,null,""]
["",null,null,null,null,null,null,""]
["",null,null,null,null,null,null,""]
["",null,null,null,null,null,null,""]
["",null,null,null,null,null,null,""]
["",null,null,null,null,null,null,""]
["",null,null,null,null,null,null,""]
["",null,null,null,null,null,null,""]
["",null,null,null,null,null,null,""]
["",null,null,null,null,null,null,""]
["",null,null,null,null,null,null,""]
["",null,null,null,null,null,null,""]
["",null,null,null,null,null,null,""]
["",null,null,null,null,null,null,""]
["",null,null,null,null,null,null,""]
["",null,null,null,null,null,null,""]
["",null,null,null,null,null,null,""]
["",null,null,null,null,null,null,""]
["",null,null,null,null,null,null,""]
["",null,null,null,null,null,null,""]
["",null,null,null,null,null,null,""]
["",null,null,null,null,null,null,""]
["",null,null,null,null,null,null,""]
["",null,null,null,null,null,null,""]
["",null,null,null,null,null,null,""]
["",null,null,null,null,null,null,""]
["",null,null,null,null,null,null,""]
["",null,null,null,null,null,null,""]
["",null,null,null,null,null,null,""]
["",null,null,null,null,null,null,""]
["",null,null,null,null,null,null,""]
["",null,null,null,null,null,null,""]
["",null,null,null,null,null,null,""]
["",null,null,null,null,null,null,""]
["",null,null,null,null,null,null,""]
["",null,null,null,null,null,null,""]
["",null,null,null,null,null,null,""]
["",null,null,null,null,null,null,""]
["",null,null,null,null,null,null,""]
["",null,null,null,null,null,null,""]
["",null,null,null,null,null,null,""]
["",null,null,null,null,null,null,""]
["",null,null,null,null,null,null,""]
["",null,null,null,null,null,null,""]
["",null,null,null,null,null,null,""]
["",null,null,null,null,null,null,""]
["",null,null,null,null,null,null,""]
["",null,null,null,null,null,null,""]
["",null,null,null,null,null,null,""]
["",null,null,null,null,null,null,""]
["",null,null,null,null,null,null,""]
["",null,null,null,null,null,null,""]
["",null,null,null,null,null,null,""]
["",null,null,null,null,null,null,""]
["",null,null,null,null,null,null,""]
["",null,null,null,null,null,null,""]
["",null,null,null,null,null,null,""]
["",null,null,null,null,null,null,""]
[{"$f":"IF(C1359=\"\",\"\",ROW()-13)","v":""},null,null,null,null,null,null,""]
["",null,null,null,null,null,null,{"$f":"IF(OR(F1360<>0,G1360),H1359+F1360-G1360,\"\")","v":""}]
["",null,null,null,null,null,null,""]
["",null,null,null,null,null,null,""]
["",null,null,null,null,null,null,""]
["",null,null,null,null,null,null,""]
["",null,null,null,null,null,null,""]
["",null,null,null,null,null,null,""]
["",null,null,null,null,null,null,""]
["",null,null,null,null,null,null,""]
["",null,null,null,null,null,null,""]
["",null,null,null,null,null,null,""]
["",null,null,null,null,null,null,""]
["",null,null,null,null,null,null,""]
["",null,null,null,null,null,null,""]
["",null,null,null,null,null,null,""]
["",null,null,null,null,null,null,""]
["",null,null,null,null,null,null,""]
["",null,null,null,null,null,null,""]
["",null,null,null,null,null,null,""]
["",null,null,null,null,null,null,""]
["",null,null,null,null,null,null,""]
["",null,null,null,null,null,null,""]
["",null,null,null,null,null,null,""]
["",null,null,null,null,null,null,""]
["",null,null,null,null,null,null,""]
["",null,null,null,null,null,null,""]
["",null,null,null,null,null,null,""]
["",null,null,null,null,null,null,""]
["",null,null,null,null,null,null,""]
["",null,null,null,null,null,null,""]
["",null,null,null,null,null,null,""]
["",null,null,null,null,null,null,""]
["",null,null,null,null,null,null,""]
["",null,null,null,null,null,null,""]
["",null,null,null,null,null,null,""]
["",null,null,null,null,null,null,""]
["",null,null,null,null,null,null,""]
["",null,null,null,null,null,null,""]
["",null,null,null,null,null,null,""]
["",null,null,null,null,null,null,""]
["",null,null,null,null,null,null,""]
["",null,null,null,null,null,null,""]
["",null,null,null,null,null,null,""]
["",null,null,null,null,null,null,""]
["",null,null,null,null,null,null,""]
["",null,null,null,null,null,null,""]
["",null,null,null,null,null,null,""]
["",null,null,null,null,null,null,""]
["",null,null,null,null,null,null,""]
["",null,null,null,null,null,null,""]
["",null,null,null,null,null,null,""]
["",null,null,null,null,null,null,""]
["",null,null,null,null,null,null,""]
["",null,null,null,null,null,null,""]
["",null,null,null,null,null,null,""]
["",null,null,null,null,null,null,""]
["",null,null,null,null,null,null,""]
["",null,null,null,null,null,null,""]
["",null,null,null,null,null,null,""]
["",null,null,null,null,null,null,""]
["",null,null,null,null,null,null,""]
["",null,null,null,null,null,null,""]
["",null,null,null,null,null,null,""]
[{"$f":"IF(C1423=\"\",\"\",ROW()-13)","v":""},null,null,null,null,null,null,""]
["",null,null,null,null,null,null,{"$f":"IF(OR(F1424<>0,G1424),H1423+F1424-G1424,\"\")","v":""}]
["",null,null,null,null,null,null,""]
["",null,null,null,null,null,null,""]
["",null,null,null,null,null,null,""]
["",null,null,null,null,null,null,""]
["",null,null,null,null,null,null,""]
["",null,null,null,null,null,null,""]
["",null,null,null,null,null,null,""]
["",null,null,null,null,null,null,""]
["",null,null,null,null,null,null,""]
["",null,null,null,null,null,null,""]
["",null,null,null,null,null,null,""]
["",null,null,null,null,null,null,""]
["",null,null,null,null,null,null,""]
["",null,null,null,null,null,null,""]
["",null,null,null,null,null,null,""]
["",null,null,null,null,null,null,""]
["",null,null,null,null,null,null,""]
["",null,null,null,null,null,null,""]
["",null,null,null,null,null,null,""]
["",null,null,null,null,null,null,""]
["",null,null,null,null,null,null,""]
["",null,null,null,null,null,null,""]
["",null,null,null,null,null,null,""]
["",null,null,null,null,null,null,""]
["",null,null,null,null,null,null,""]
["",null,null,null,null,null,null,""]
["",null,null,null,null,null,null,""]
["",null,null,null,null,null,null,""]
["",null,null,null,null,null,null,""]
["",null,null,null,null,null,null,""]
["",null,null,null,null,null,null,""]
["",null,null,null,null,null,null,""]
["",null,null,null,null,null,null,""]
["",null,null,null,null,null,null,""]
["",null,null,null,null,null,null,""]
["",null,null,null,null,null,null,""]
["",null,null,null,null,null,null,""]
["",null,null,null,null,null,null,""]
["",null,null,null,null,null,null,""]
["",null,null,null,null,null,null,""]
["",null,null,null,null,null,null,""]
["",null,null,null,null,null,null,""]
["",null,null,null,null,null,null,""]
["",null,null,null,null,null,null,""]
["",null,null,null,null,null,null,""]
["",null,null,null,null,null,null,""]
["",null,null,null,null,null,null,""]
["",null,null,null,null,null,null,""]
["",null,null,null,null,null,null,""]
["",null,null,null,null,null,null,""]
["",null,null,null,null,null,null,""]
["",null,null,null,null,null,null,""]
["",null,null,null,null,null,null,""]
["",null,null,null,null,null,null,""]
["",null,null,null,null,null,null,""]
["",null,null,null,null,null,null,""]
["",null,null,null,null,null,null,""]
["",null,null,null,null,null,null,""]
["",null,null,null,null,null,null,""]
["",null,null,null,null,null,null,""]
["",null,null,null,null,null,null,""]
["",null,null,null,null,null,null,""]
[{"$f":"IF(C1487=\"\",\"\",ROW()-13)","v":""},null,null,null,null,null,null,""]
["",null,null,null,null,null,null,{"$f":"IF(OR(F1488<>0,G1488),H1487+F1488-G1488,\"\")","v":""}]
["",null,null,null,null,null,null,""]
["",null,null,null,null,null,null,""]
["",null,null,null,null,null,null,""]
["",null,null,null,null,null,null,""]
["",null,null,null,null,null,null,""]
["",null,null,null,null,null,null,""]
["",null,null,null,null,null,null,""]
["",null,null,null,null,null,null,""]
["",null,null,null,null,null,null,""]
["",null,null,null,null,null,null,""]
["",null,null,null,null,null,null,""]
["",null,null,null,null,null,null,""]
["",null,null,null,null,null,null,""]
["",null,null,null,null,null,null,""]
["",null,null,null,null,null,null,""]
["",null,null,null,null,null,null,""]
["",null,null,null,null,null,null,""]
["",null,null,null,null,null,null,""]
["",null,null,null,null,null,null,""]
["",null,null,null,null,null,null,""]
["",null,null,null,null,null,null,""]
["",null,null,null,null,null,null,""]
["",null,null,null,null,null,null,""]
["",null,null,null,null,null,null,""]
["",null,null,null,null,null,null,""]
["",null,null,null,null,null,null,""]
["",null,null,null,null,null,null,""]
["",null,null,null,null,null,null,""]
["",null,null,null,null,null,null,""]
["",null,null,null,null,null,null,""]
["",null,null,null,null,null,null,""]
["",null,null,null,null,null,null,""]
["",null,null,null,null,null,null,""]
["",null,null,null,null,null,null,""]
["",null,null,null,null,null,null,""]
["",null,null,null,null,null,null,""]
["",null,null,null,null,null,null,""]
["",null,null,null,null,null,null,""]
["",null,null,null,null,null,null,""]
["",null,null,null,null,null,null,""]
["",null,null,null,null,null,null,""]
["",null,null,null,null,null,null,""]
["",null,null,null,null,null,null,""]
["",null,null,null,null,null,null,""]
["",null,null,null,null,null,null,""]
["",null,null,null,null,null,null,""]
["",null,null,null,null,null,null,""]
["",null,null,null,null,null,null,""]
["",null,null,null,null,null,null,""]
["",null,null,null,null,null,null,""]
["",null,null,null,null,null,null,""]
["",null,null,null,null,null,null,""]
["",null,null,null,null,null,null,""]
["",null,null,null,null,null,null,""]
["",null,null,null,null,null,null,""]
["",null,null,null,null,null,null,""]
["",null,null,null,null,null,null,""]
["",null,null,null,null,null,null,""]
["",null,null,null,null,null,null,""]
["",null,null,null,null,null,null,""]
["",null,null,null,null,null,null,""]
["",null,null,null,null,null,null,""]
[{"$f":"IF(C1551=\"\",\"\",ROW()-13)","v":""},null,null,null,null,null,null,""]
["",null,null,null,null,null,null,{"$f":"IF(OR(F1552<>0,G1552),H1551+F1552-G1552,\"\")","v":""}]
["",null,null,null,null,null,null,""]
["",null,null,null,null,null,null,""]
["",null,null,null,null,null,null,""]
["",null,null,null,null,null,null,""]
["",null,null,null,null,null,null,""]
["",null,null,null,null,null,null,""]
["",null,null,null,null,null,null,""]
["",null,null,null,null,null,null,""]
["",null,null,null,null,null,null,""]
["",null,null,null,null,null,null,""]
["",null,null,null,null,null,null,""]
["",null,null,null,null,null,null,""]
["",null,null,null,null,null,null,""]
["",null,null,null,null,null,null,""]
["",null,null,null,null,null,null,""]
["",null,null,null,null,null,null,""]
["",null,null,null,null,null,null,""]
["",null,null,null,null,null,null,""]
["",null,null,null,null,null,null,""]
["",null,null,null,null,null,null,""]
["",null,null,null,null,null,null,""]
["",null,null,null,null,null,null,""]
["",null,null,null,null,null,null,""]
["",null,null,null,null,null,null,""]
["",null,null,null,null,null,null,""]
["",null,null,null,null,null,null,""]
["",null,null,null,null,null,null,""]
["",null,null,null,null,null,null,""]
["",null,null,null,null,null,null,""]
["",null,null,null,null,null,null,""]
["",null,null,null,null,null,null,""]
["",null,null,null,null,null,null,""]
["",null,null,null,null,null,null,""]
["",null,null,null,null,null,null,""]
["",null,null,null,null,null,null,""]
["",null,null,null,null,null,null,""]
["",null,null,null,null,null,null,""]
["",null,null,null,null,null,null,""]
["",null,null,null,null,null,null,""]
["",null,null,null,null,null,null,""]
["",null,null,null,null,null,null,""]
["",null,null,null,null,null,null,""]
["",null,null,null,null,null,null,""]
["",null,null,null,null,null,null,""]
["",null,null,null,null,null,null,""]
["",null,null,null,null,null,null,""]
["",null,null,null,null,null,null,""]
["",null,null,null,null,null,null,""]
["",null,null,null,null,null,null,""]
["",null,null,null,null,null,null,""]
["",null,null,null,null,null,null,""]
["",null,null,null,null,null,null,""]
["",null,null,null,null,null,null,""]
["",null,null,null,null,null,null,""]
["",null,null,null,null,null,null,""]
["",null,null,null,null,null,null,""]
["",null,null,null,null,null,null,""]
["",null,null,null,null,null,null,""]
["",null,null,null,null,null,null,""]
["",null,null,null,null,null,null,""]
["",null,null,null,null,null,null,""]
["",null,null,null,null,null,null,""]
[{"$f":"IF(C1615=\"\",\"\",ROW()-13)","v":""},null,null,null,null,null,null,""]
["",null,null,null,null,null,null,{"$f":"IF(OR(F1616<>0,G1616),H1615+F1616-G1616,\"\")","v":""}]
["",null,null,null,null,null,null,""]
["",null,null,null,null,null,null,""]
["",null,null,null,null,null,null,""]
["",null,null,null,null,null,null,""]
["",null,null,null,null,null,null,""]
["",null,null,null,null,null,null,""]
["",null,null,null,null,null,null,""]
["",null,null,null,null,null,null,""]
["",null,null,null,null,null,null,""]
["",null,null,null,null,null,null,""]
["",null,null,null,null,null,null,""]
["",null,null,null,null,null,null,""]
["",null,null,null,null,null,null,""]
["",null,null,null,null,null,null,""]
["",null,null,null,null,null,null,""]
["",null,null,null,null,null,null,""]
["",null,null,null,null,null,null,""]
["",null,null,null,null,null,null,""]
["",null,null,null,null,null,null,""]
["",null,null,null,null,null,null,""]
["",null,null,null,null,null,null,""]
["",null,null,null,null,null,null,""]
["",null,null,null,null,null,null,""]
["",null,null,null,null,null,null,""]
["",null,null,null,null,null,null,""]
["",null,null,null,null,null,null,""]
["",null,null,null,null,null,null,""]
["",null,null,null,null,null,null,""]
["",null,null,null,null,null,null,""]
["",null,null,null,null,null,null,""]
["",null,null,null,null,null,null,""]
["",null,null,null,null,null,null,""]
["",null,null,null,null,null,null,""]
["",null,null,null,null,null,null,""]
["",null,null,null,null,null,null,""]
["",null,null,null,null,null,null,""]
["",null,null,null,null,null,null,""]
["",null,null,null,null,null,null,""]
["",null,null,null,null,null,null,""]
["",null,null,null,null,null,null,""]
["",null,null,null,null,null,null,""]
["",null,null,null,null,null,null,""]
["",null,null,null,null,null,null,""]
["",null,null,null,null,null,null,""]
["",null,null,null,null,null,null,""]
["",null,null,null,null,null,null,""]
["",null,null,null,null,null,null,""]
["",null,null,null,null,null,null,""]
["",null,null,null,null,null,null,""]
["",null,null,null,null,null,null,""]
["",null,null,null,null,null,null,""]
["",null,null,null,null,null,null,""]
["",null,null,null,null,null,null,""]
["",null,null,null,null,null,null,""]
["",null,null,null,null,null,null,""]
["",null,null,null,null,null,null,""]
["",null,null,null,null,null,null,""]
["",null,null,null,null,null,null,""]
["",null,null,null,null,null,null,""]
["",null,null,null,null,null,null,""]
["",null,null,null,null,null,null,""]
["",null,null,null,null,null,null,""]
[{"$f":"IF(C1679=\"\",\"\",ROW()-13)","v":""},null,null,null,null,null,null,""]
["",null,null,null,null,null,null,{"$f":"IF(OR(F1680<>0,G1680),H1679+F1680-G1680,\"\")","v":""}]
["",null,null,null,null,null,null,""]
["",null,null,null,null,null,null,""]
["",null,null,null,null,null,null,""]
["",null,null,null,null,null,null,""]
["",null,null,null,null,null,null,""]
["",null,null,null,null,null,null,""]
["",null,null,null,null,null,null,""]
["",null,null,null,null,null,null,""]
["",null,null,null,null,null,null,""]
["",null,null,null,null,null,null,""]
["",null,null,null,null,null,null,""]
["",null,null,null,null,null,null,""]
["",null,null,null,null,null,null,""]
["",null,null,null,null,null,null,""]
["",null,null,null,null,null,null,""]
["",null,null,null,null,null,null,""]
["",null,null,null,null,null,null,""]
["",null,null,null,null,null,null,""]
["",null,null,null,null,null,null,""]
["",null,null,null,null,null,null,""]
["",null,null,null,null,null,null,""]
["",null,null,null,null,null,null,""]
["",null,null,null,null,null,null,""]
["",null,null,null,null,null,null,""]
["",null,null,null,null,null,null,""]
["",null,null,null,null,null,null,""]
["",null,null,null,null,null,null,""]
["",null,null,null,null,null,null,""]
["",null,null,null,null,null,null,""]
["",null,null,null,null,null,null,""]
["",null,null,null,null,null,null,""]
["",null,null,null,null,null,null,""]
["",null,null,null,null,null,null,""]
["",null,null,null,null,null,null,""]
["",null,null,null,null,null,null,""]
["",null,null,null,null,null,null,""]
["",null,null,null,null,null,null,""]
["",null,null,null,null,null,null,""]
["",null,null,null,null,null,null,""]
["",null,null,null,null,null,null,""]
["",null,null,null,null,null,null,""]
["",null,null,null,null,null,null,""]
["",null,null,null,null,null,null,""]
["",null,null,null,null,null,null,""]
["",null,null,null,null,null,null,""]
["",null,null,null,null,null,null,""]
["",null,null,null,null,null,null,""]
["",null,null,null,null,null,null,""]
["",null,null,null,null,null,null,""]
["",null,null,null,null,null,null,""]
["",null,null,null,null,null,null,""]
["",null,null,null,null,null,null,""]
["",null,null,null,null,null,null,""]
["",null,null,null,null,null,null,""]
["",null,null,null,null,null,null,""]
["",null,null,null,null,null,null,""]
["",null,null,null,null,null,null,""]
["",null,null,null,null,null,null,""]
["",null,null,null,null,null,null,""]
["",null,null,null,null,null,null,""]
["",null,null,null,null,null,null,""]
["",null,null,null,null,null,null,""]
[{"$f":"IF(C1743=\"\",\"\",ROW()-13)","v":""},null,null,null,null,null,null,""]
["",null,null,null,null,null,null,{"$f":"IF(OR(F1744<>0,G1744),H1743+F1744-G1744,\"\")","v":""}]
["",null,null,null,null,null,null,""]
["",null,null,null,null,null,null,""]
["",null,null,null,null,null,null,""]
["",null,null,null,null,null,null,""]
["",null,null,null,null,null,null,""]
["",null,null,null,null,null,null,""]
["",null,null,null,null,null,null,""]
["",null,null,null,null,null,null,""]
["",null,null,null,null,null,null,""]
["",null,null,null,null,null,null,""]
["",null,null,null,null,null,null,""]
["",null,null,null,null,null,null,""]
["",null,null,null,null,null,null,""]
["",null,null,null,null,null,null,""]
["",null,null,null,null,null,null,""]
["",null,null,null,null,null,null,""]
["",null,null,null,null,null,null,""]
["",null,null,null,null,null,null,""]
["",null,null,null,null,null,null,""]
["",null,null,null,null,null,null,""]
["",null,null,null,null,null,null,""]
["",null,null,null,null,null,null,""]
["",null,null,null,null,null,null,""]
["",null,null,null,null,null,null,""]
["",null,null,null,null,null,null,""]
["",null,null,null,null,null,null,""]
["",null,null,null,null,null,null,""]
["",null,null,null,null,null,null,""]
["",null,null,null,null,null,null,""]
["",null,null,null,null,null,null,""]
["",null,null,null,null,null,null,""]
["",null,null,null,null,null,null,""]
["",null,null,null,null,null,null,""]
["",null,null,null,null,null,null,""]
["",null,null,null,null,null,null,""]
["",null,null,null,null,null,null,""]
["",null,null,null,null,null,null,""]
["",null,null,null,null,null,null,""]
["",null,null,null,null,null,null,""]
["",null,null,null,null,null,null,""]
["",null,null,null,null,null,null,""]
["",null,null,null,null,null,null,""]
["",null,null,null,null,null,null,""]
["",null,null,null,null,null,null,""]
["",null,null,null,null,null,null,""]
["",null,null,null,null,null,null,""]
["",null,null,null,null,null,null,""]
["",null,null,null,null,null,null,""]
["",null,null,null,null,null,null,""]
["",null,null,null,null,null,null,""]
["",null,null,null,null,null,null,""]
["",null,null,null,null,null,null,""]
["",null,null,null,null,null,null,""]
["",null,null,null,null,null,null,""]
["",null,null,null,null,null,null,""]
["",null,null,null,null,null,null,""]
["",null,null,null,null,null,null,""]
["",null,null,null,null,null,null,""]
["",null,null,null,null,null,null,""]
["",null,null,null,null,null,null,""]
["",null,null,null,null,null,null,""]
["",null,null,null,null,null,null,""]
[{"$f":"IF(C1807=\"\",\"\",ROW()-13)","v":""},null,null,null,null,null,null,""]
["",null,null,null,null,null,null,{"$f":"IF(OR(F1808<>0,G1808),H1807+F1808-G1808,\"\")","v":""}]
["",null,null,null,null,null,null,""]
["",null,null,null,null,null,null,""]
["",null,null,null,null,null,null,""]
["",null,null,null,null,null,null,""]
["",null,null,null,null,null,null,""]
["",null,null,null,null,null,null,""]
["",null,null,null,null,null,null,""]
["",null,null,null,null,null,null,""]
["",null,null,null,null,null,null,""]
["",null,null,null,null,null,null,""]
["",null,null,null,null,null,null,""]
["",null,null,null,null,null,null,""]
["",null,null,null,null,null,null,""]
["",null,null,null,null,null,null,""]
["",null,null,null,null,null,null,""]
["",null,null,null,null,null,null,""]
["",null,null,null,null,null,null,""]
["",null,null,null,null,null,null,""]
["",null,null,null,null,null,null,""]
["",null,null,null,null,null,null,""]
["",null,null,null,null,null,null,""]
["",null,null,null,null,null,null,""]
["",null,null,null,null,null,null,""]
["",null,null,null,null,null,null,""]
["",null,null,null,null,null,null,""]
["",null,null,null,null,null,null,""]
["",null,null,null,null,null,null,""]
["",null,null,null,null,null,null,""]
["",null,null,null,null,null,null,""]
["",null,null,null,null,null,null,""]
["",null,null,null,null,null,null,""]
["",null,null,null,null,null,null,""]
["",null,null,null,null,null,null,""]
["",null,null,null,null,null,null,""]
["",null,null,null,null,null,null,""]
["",null,null,null,null,null,null,""]
["",null,null,null,null,null,null,""]
["",null,null,null,null,null,null,""]
["",null,null,null,null,null,null,""]
["",null,null,null,null,null,null,""]
["",null,null,null,null,null,null,""]
["",null,null,null,null,null,null,""]
["",null,null,null,null,null,null,""]
["",null,null,null,null,null,null,""]
["",null,null,null,null,null,null,""]
["",null,null,null,null,null,null,""]
["",null,null,null,null,null,null,""]
["",null,null,null,null,null,null,""]
["",null,null,null,null,null,null,""]
["",null,null,null,null,null,null,""]
["",null,null,null,null,null,null,""]
["",null,null,null,null,null,null,""]
["",null,null,null,null,null,null,""]
["",null,null,null,null,null,null,""]
["",null,null,null,null,null,null,""]
["",null,null,null,null,null,null,""]
["",null,null,null,null,null,null,""]
["",null,null,null,null,null,null,""]
["",null,null,null,null,null,null,""]
["",null,null,null,null,null,null,""]
["",null,null,null,null,null,null,""]
["",null,null,null,null,null,null,""]
[{"$f":"IF(C1871=\"\",\"\",ROW()-13)","v":""},null,null,null,null,null,null,""]
["",null,null,null,null,null,null,{"$f":"IF(OR(F1872<>0,G1872),H1871+F1872-G1872,\"\")","v":""}]
["",null,null,null,null,null,null,""]
["",null,null,null,null,null,null,""]
["",null,null,null,null,null,null,""]
["",null,null,null,null,null,null,""]
["",null,null,null,null,null,null,""]
["",null,null,null,null,null,null,""]
["",null,null,null,null,null,null,""]
["",null,null,null,null,null,null,""]
["",null,null,null,null,null,null,""]
["",null,null,null,null,null,null,""]
["",null,null,null,null,null,null,""]
["",null,null,null,null,null,null,""]
["",null,null,null,null,null,null,""]
["",null,null,null,null,null,null,""]
["",null,null,null,null,null,null,""]
["",null,null,null,null,null,null,""]
["",null,null,null,null,null,null,""]
["",null,null,null,null,null,null,""]
["",null,null,null,null,null,null,""]
["",null,null,null,null,null,null,""]
["",null,null,null,null,null,null,""]
["",null,null,null,null,null,null,""]
["",null,null,null,null,null,null,""]
["",null,null,null,null,null,null,""]
["",null,null,null,null,null,null,""]
["",null,null,null,null,null,null,""]
["",null,null,null,null,null,null,""]
["",null,null,null,null,null,null,""]
["",null,null,null,null,null,null,""]
["",null,null,null,null,null,null,""]
["",null,null,null,null,null,null,""]
["",null,null,null,null,null,null,""]
["",null,null,null,null,null,null,""]
["",null,null,null,null,null,null,""]
["",null,null,null,null,null,null,""]
["",null,null,null,null,null,null,""]
["",null,null,null,null,null,null,""]
["",null,null,null,null,null,null,""]
["",null,null,null,null,null,null,""]
["",null,null,null,null,null,null,""]
["",null,null,null,null,null,null,""]
["",null,null,null,null,null,null,""]
["",null,null,null,null,null,null,""]
["",null,null,null,null,null,null,""]
["",null,null,null,null,null,null,""]
["",null,null,null,null,null,null,""]
["",null,null,null,null,null,null,""]
["",null,null,null,null,null,null,""]
["",null,null,null,null,null,null,""]
["",null,null,null,null,null,null,""]
["",null,null,null,null,null,null,""]
["",null,null,null,null,null,null,""]
["",null,null,null,null,null,null,""]
["",null,null,null,null,null,null,""]
["",null,null,null,null,null,null,""]
["",null,null,null,null,null,null,""]
["",null,null,null,null,null,null,""]
["",null,null,null,null,null,null,""]
["",null,null,null,null,null,null,""]
["",null,null,null,null,null,null,""]
["",null,null,null,null,null,null,""]
["",null,null,null,null,null,null,""]
[{"$f":"IF(C1935=\"\",\"\",ROW()-13)","v":""},null,null,null,null,null,null,""]
["",null,null,null,null,null,null,{"$f":"IF(OR(F1936<>0,G1936),H1935+F1936-G1936,\"\")","v":""}]
["",null,null,null,null,null,null,""]
["",null,null,null,null,null,null,""]
["",null,null,null,null,null,null,""]
["",null,null,null,null,null,null,""]
["",null,null,null,null,null,null,""]
["",null,null,null,null,null,null,""]
["",null,null,null,null,null,null,""]
["",null,null,null,null,null,null,""]
["",null,null,null,null,null,null,""]
["",null,null,null,null,null,null,""]
["",null,null,null,null,null,null,""]
["",null,null,null,null,null,null,""]
["",null,null,null,null,null,null,""]
["",null,null,null,null,null,null,""]
["",null,null,null,null,null,null,""]
["",null,null,null,null,null,null,""]
["",null,null,null,null,null,null,""]
["",null,null,null,null,null,null,""]
["",null,null,null,null,null,null,""]
["",null,null,null,null,null,null,""]
["",null,null,null,null,null,null,""]
["",null,null,null,null,null,null,""]
["",null,null,null,null,null,null,""]
["",null,null,null,null,null,null,""]
["",null,null,null,null,null,null,""]
["",null,null,null,null,null,null,""]
["",null,null,null,null,null,null,""]
["",null,null,null,null,null,null,""]
["",null,null,null,null,null,null,""]
["",null,null,null,null,null,null,""]
["",null,null,null,null,null,null,""]
["",null,null,null,null,null,null,""]
["",null,null,null,null,null,null,""]
["",null,null,null,null,null,null,""]
["",null,null,null,null,null,null,""]
["",null,null,null,null,null,null,""]
["",null,null,null,null,null,null,""]
["",null,null,null,null,null,null,""]
["",null,null,null,null,null,null,""]
["",null,null,null,null,null,null,""]
["",null,null,null,null,null,null,""]
["",null,null,null,null,null,null,""]
["",null,null,null,null,null,null,""]
["",null,null,null,null,null,null,""]
["",null,null,null,null,null,null,""]
["",null,null,null,null,null,null,""]
["",null,null,null,null,null,null,""]
["",null,null,null,null,null,null,""]
["",null,null,null,null,null,null,""]
["",null,null,null,null,null,null,""]
["",null,null,null,null,null,null,""]
["",null,null,null,null,null,null,""]
["",null,null,null,null,null,null,""]
["",null,null,null,null,null,null,""]
["",null,null,null,null,null,null,""]
["",null,null,null,null,null,null,""]
["",null,null,null,null,null,null,""]
["",null,null,null,null,null,null,""]
["",null,null,null,null,null,null,""]
["",null,null,null,null,null,null,""]
["",null,null,null,null,null,null,""]
["",null,null,null,null,null,null,""]
[{"$f":"IF(C1999=\"\",\"\",ROW()-13)","v":""},null,null,null,null,null,null,""]
["",null,null,null,null,null,null,{"$f":"IF(OR(F2000<>0,G2000),H1999+F2000-G2000,\"\")","v":""}]
["",null,null,null,null,null,null,""]
["",null,null,null,null,null,null,""]
["",null,null,null,null,null,null,""]
["",null,null,null,null,null,null,""]
["",null,null,null,null,null,null,""]
["",null,null,null,null,null,null,""]
["",null,null,null,null,null,null,""]
["",null,null,null,null,null,null,""]
["",null,null,null,null,null,null,""]
["",null,null,null,null,null,null,{"$f":"IF(OR(F2064<>0,G2064),H2063+F2064-G2064,\"\")","v":""}]
["",null,null,null,null,null,null,""]
["",null,null,null,null,null,null,""]
["",null,null,null,null,null,null,""]
["",null,null,null,null,null,null,""]
["",null,null,null,null,null,null,""]
["",null,null,null,null,null,null,""]
["",null,null,null,null,null,null,""]
["",null,null,null,null,null,null,""]
["",null,null,null,null,null,null,""]
["",null,null,null,null,null,null,""]
["",null,null,null,null,null,null,""]
["",null,null,null,null,null,null,""]
["",null,null,null,null,null,null,""]
["",null,null,null,null,null,null,""]
["",null,null,null,null,null,null,""]
["",null,null,null,null,null,null,""]
["",null,null,null,null,null,null,""]
["",null,null,null,null,null,null,{"$f":"IF(OR(F2192<>0,G2192),H2191+F2192-G2192,\"\")","v":""}]
["",null,null,null,null,null,null,""]
["",null,null,null,null,null,null,""]
["",null,null,null,null,null,null,""]
["",null,null,null,null,null,null,""]
["",null,null,null,null,null,null,""]
["",null,null,null,null,null,null,""]
["",null,null,null,null,null,null,""]
["",null,null,null,null,null,null,""]
[{"$f":"IF(C2255=\"\",\"\",ROW()-13)","v":""},null,null,null,null,null,null,""]
["",null,null,null,null,null,null,""]
["",null,null,null,null,null,null,""]
["",null,null,null,null,null,null,""]
["",null,null,null,null,null,null,""]
["",null,null,null,null,null,null,""]
["",null,null,null,null,null,null,""]
["",null,null,null,null,null,null,""]
["",null,null,null,null,null,null,""]
["",null,null,null,null,null,null,""]
["",null,null,null,null,null,null,""]
["",null,null,null,null,null,null,""]
["",null,null,null,null,null,null,""]
["",null,null,null,null,null,null,""]
["",null,null,null,null,null,null,""]
["",null,null,null,null,null,null,""]
["",null,null,null,null,null,null,""]
["",null,null,null,null,null,null,""]
["",null,null,null,null,null,null,""]
["",null,null,null,null,null,null,""]
["",null,null,null,null,null,null,""]
["",null,null,null,null,null,null,""]
["",null,null,null,null,null,null,""]
["",null,null,null,null,null,null,""]
["",null,null,null,null,null,null,""]
["",null,null,null,null,null,null,""]
["",null,null,null,null,null,null,""]
["",null,null,null,null,null,null,""]
["",null,null,null,null,null,null,""]
["",null,null,null,null,null,null,""]
["",null,null,null,null,null,null,""]
["",null,null,null,null,null,null,""]
["",null,null,null,null,null,null,""]
["",null,null,null,null,null,null,""]
["",null,null,null,null,null,null,""]
["",null,null,null,null,null,null,""]
["",null,null,null,null,null,null,""]
["",null,null,null,null,null,null,""]
["",null,null,null,null,null,null,""]
["",null,null,null,null,null,null,""]
["",null,null,null,null,null,null,""]
["",null,null,null,null,null,null,""]
["",null,null,null,null,null,null,""]
["",null,null,null,null,null,null,""]
["",null,null,null,null,null,null,""]
["",null,null,null,null,null,null,""]
["",null,null,null,null,null,null,""]
["",null,null,null,null,null,null,""]
["",null,null,null,null,null,null,""]
["",null,null,null,null,null,null,""]
["",null,null,null,null,null,null,""]
["",null,null,null,null,null,null,""]
["",null,null,null,null,null,null,""]
["",null,null,null,null,null,null,""]
["",null,null,null,null,null,null,""]
["",null,null,null,null,null,null,""]
["",null,null,null,null,null,null,{"$f":"IF(OR(F2640<>0,G2640),H2639+F2640-G2640,\"\")","v":""}]
["",null,null,null,null,null,null,""]
["",null,null,null,null,null,null,""]
["",null,null,null,null,null,null,""]
["",null,null,null,null,null,null,""]
["",null,null,null,null,null,null,""]
["",null,null,null,null,null,null,""]
["",null,null,null,null,null,null,""]
["",null,null,null,null,null,null,""]
["",null,null,null,null,null,null,""]
["",null,null,null,null,null,null,""]
["",null,null,null,null,null,null,""]
["",null,null,null,null,null,null,""]
["",null,null,null,null,null,null,""]
["",null,null,null,null,null,null,""]
["",null,null,null,null,null,null,""]
["",null,null,null,null,null,null,""]
["",null,null,null,null,null,null,""]
["",null,null,null,null,null,null,{"$f":"IF(OR(F2768<>0,G2768),H2767+F2768-G2768,\"\")","v":""}]
["",null,null,null,null,null,null,""]
["",null,null,null,null,null,null,""]
["",null,null,null,null,null,null,""]
["",null,null,null,null,null,null,""]
["",null,null,null,null,null,null,""]
["",null,null,null,null,null,null,""]
["",null,null,null,null,null,null,""]
["",null,null,null,null,null,null,""]
[{"$f":"IF(C2831=\"\",\"\",ROW()-13)","v":""},null,null,null,null,null,null,""]
["",null,null,null,null,null,null,""]
["",null,null,null,null,null,null,""]
["",null,null,null,null,null,null,""]
["",null,null,null,null,null,null,""]
["",null,null,null,null,null,null,""]
["",null,null,null,null,null,null,""]
["",null,null,null,null,null,null,""]
["",null,null,null,null,null,null,""]
["",null,null,null,null,null,null,""]
["",null,null,null,null,null,null,""]
["",null,null,null,null,null,null,""]
["",null,null,null,null,null,null,""]
["",null,null,null,null,null,null,""]
["",null,null,null,null,null,null,""]
["",null,null,null,null,null,null,""]
["",null,null,null,null,null,null,""]
["",null,null,null,null,null,null,""]
["",null,null,null,null,null,null,""]
["",null,null,null,null,null,null,{"$f":"IF(OR(F2960<>0,G2960),H2959+F2960-G2960,\"\")","v":""}]
["",null,null,null,null,null,null,""]
["",null,null,null,null,null,null,""]
["",null,null,null,null,null,null,""]
["",null,null,null,null,null,null,""]
["",null,null,null,null,null,null,""]
["",null,null,null,null,null,null,""]
["",null,null,null,null,null,null,""]
["",null,null,null,null,null,null,""]
["",null,null,null,null,null,null,""]
["",null,null,null,null,null,null,""]
["",null,null,null,null,null,null,""]
["",null,null,null,null,null,null,""]
["",null,null,null,null,null,null,""]
["",null,null,null,null,null,null,""]
["",null,null,null,null,null,null,""]
["",null,null,null,null,null,null,""]
["",null,null,null,null,null,null,""]
["",null,null,null,null,null,null,""]
["",null,null,null,null,null,null,""]
["",null,null,null,null,null,null,""]
["",null,null,null,null,null,null,""]
["",null,null,null,null,null,null,""]
["",null,null,null,null,null,null,""]
["",null,null,null,null,null,null,""]
["",null,null,null,null,null,null,""]
["",null,null,null,null,null,null,""]
["",null,null,null,null,null,null,""]
["",null,null,null,null,null,null,""]
["",null,null,null,null,null,null,""]
["",null,null,null,null,null,null,""]
["",null,null,null,null,null,null,""]
["",null,null,null,null,null,null,""]
["",null,null,null,null,null,null,""]
["",null,null,null,null,null,null,""]
["",null,null,null,null,null,null,""]
["",null,null,null,null,null,null,""]
["",null,null,null,null,null,null,""]
["",null,null,null,null,null,null,""]
["",null,null,null,null,null,null,""]
["",null,null,null,null,null,null,""]
["",null,null,null,null,null,null,""]
["",null,null,null,null,null,null,""]
["",null,null,null,null,null,null,""]
["",null,null,null,null,null,null,""]
["",null,null,null,null,null,null,""]
["",null,null,null,null,null,null,""]
["",null,null,null,null,null,null,""]
["",null,null,null,null,null,null,""]
["",null,null,null,null,null,null,""]
["",null,null,null,null,null,null,""]
["",null,null,null,null,null,null,""]
["",null,null,null,null,null,null,""]
["",null,null,null,null,null,null,""]
["",null,null,null,null,null,null,""]
["",null,null,null,null,null,null,""]
["",null,null,null,null,null,null,""]
["",null,null,null,null,null,null,""]
["",null,null,null,null,null,null,""]
["",null,null,null,null,null,null,""]
["",null,null,null,null,null,null,""]
["",null,null,null,null,null,null,""]
["",null,null,null,null,null,null,""]
["",null,null,null,null,null,null,""]
["",null,null,null,null,null,null,""]
[{"$f":"IF(C3407=\"\",\"\",ROW()-13)","v":""},null,null,null,null,null,null,""]
["",null,null,null,null,null,null,""]
["",null,null,null,null,null,null,""]
["",null,null,null,null,null,null,""]
["",null,null,null,null,null,null,""]
["",null,null,null,null,null,null,""]
["",null,null,null,null,null,null,""]
["",null,null,null,null,null,null,""]
["",null,null,null,null,null,null,""]
["",null,null,null,null,null,null,""]
["",null,null,null,null,null,null,""]
["",null,null,null,null,null,null,""]
["",null,null,null,null,null,null,""]
["",null,null,null,null,null,null,""]
["",null,null,null,null,null,null,""]
["",null,null,null,null,null,null,""]
["",null,null,null,null,null,null,""]
["",null,null,null,null,null,null,""]
["",null,null,null,null,null,null,{"$f":"IF(OR(F3536<>0,G3536),H3535+F3536-G3536,\"\")","v":""}]
["",null,null,null,null,null,null,""]
["",null,null,null,null,null,null,""]
["",null,null,null,null,null,null,""]
["",null,null,null,null,null,null,""]
["",null,null,null,null,null,null,""]
["",null,null,null,null,null,null,""]
["",null,null,null,null,null,null,""]
["",null,null,null,null,null,null,""]
["",null,null,null,null,null,null,""]
["",null,null,null,null,null,null,""]
["",null,null,null,null,null,null,""]
["",null,null,null,null,null,null,""]
["",null,null,null,null,null,null,""]
["",null,null,null,null,null,null,""]
["",null,null,null,null,null,null,""]
["",null,null,null,null,null,null,""]
["",null,null,null,null,null,null,""]
["",null,null,null,null,null,null,""]
["",null,null,null,null,null,null,""]
["",null,null,null,null,null,null,""]
["",null,null,null,null,null,null,""]
["",null,null,null,null,null,null,""]
["",null,null,null,null,null,null,""]
["",null,null,null,null,null,null,""]
["",null,null,null,null,null,null,""]
["",null,null,null,null,null,null,""]
["",null,null,null,null,null,null,""]
["",null,null,null,null,null,null,""]
["",null,null,null,null,null,null,""]
["",null,null,null,null,null,null,""]
["",null,null,null,null,null,null,""]
["",null,null,null,null,null,null,""]
["",null,null,null,null,null,null,""]
["",null,null,null,null,null,null,""]
["",null,null,null,null,null,null,""]
["",null,null,null,null,null,null,""]
["",null,null,null,null,null,null,""]
["",null,null,null,null,null,null,""]
["",null,null,null,null,null,null,""]
["",null,null,null,null,null,null,""]
["",null,null,null,null,null,null,""]
["",null,null,null,null,null,null,""]
["",null,null,null,null,null,null,""]
["",null,null,null,null,null,null,""]
["",null,null,null,null,null,null,""]
["",null,null,null,null,null,null,""]
["",null,null,null,null,null,null,""]
["",null,null,null,null,null,null,""]
["",null,null,null,null,null,null,""]
["",null,null,null,null,null,null,""]
["",null,null,null,null,null,null,""]
["",null,null,null,null,null,null,""]
["",null,null,null,null,null,null,""]
["",null,null,null,null,null,null,""]
["",null,null,null,null,null,null,""]
["",null,null,null,null,null,null,""]
["",null,null,null,null,null,null,""]
["",null,null,null,null,null,null,""]
["",null,null,null,null,null,null,""]
["",null,null,null,null,null,null,""]
["",null,null,null,null,null,null,""]
["",null,null,null,null,null,null,""]
["",null,null,null,null,null,null,""]
["",null,null,null,null,null,null,""]
[{"$f":"IF(C3983=\"\",\"\",ROW()-13)","v":""},null,null,null,null,null,null,""]
["",null,null,null,null,null,null,""]
["",null,null,null,null,null,null,""]
["",null,null,null,null,null,null,""]
["",null,null,null,null,null,null,""]
["",null,null,null,null,null,null,""]
["",null,null,null,null,null,null,""]
["",null,null,null,null,null,null,""]
["",null,null,null,null,null,null,""]
["",null,null,null,null,null,null,""]
["",null,null,null,null,null,null,""]
["",null,null,null,null,null,null,""]
["",null,null,null,null,null,null,""]
["",null,null,null,null,null,null,""]
["",null,null,null,null,null,null,""]
["",null,null,null,null,null,null,""]
["",null,null,null,null,null,null,""]
["",null,null,null,null,null,null,""]
["",null,null,null,null,null,null,{"$f":"IF(OR(F4112<>0,G4112),H4111+F4112-G4112,\"\")","v":""}]
["",null,null,null,null,null,null,""]
["",null,null,null,null,null,null,""]
["",null,null,null,null,null,null,""]
["",null,null,null,null,null,null,""]
["",null,null,null,null,null,null,""]
["",null,null,null,null,null,null,""]
["",null,null,null,null,null,null,""]
["",null,null,null,null,null,null,""]
["",null,null,null,null,null,null,""]
[{"$f":"IF(C4175=\"\",\"\",ROW()-13)","v":""},null,null,null,null,null,null,""]
["",null,null,null,null,null,null,""]
["",null,null,null,null,null,null,""]
["",null,null,null,null,null,null,""]
["",null,null,null,null,null,null,""]
["",null,null,null,null,null,null,""]
["",null,null,null,null,null,null,""]
["",null,null,null,null,null,null,""]
["",null,null,null,null,null,null,""]
["",null,null,null,null,null,null,""]
["",null,null,null,null,null,null,""]
["",null,null,null,null,null,null,""]
["",null,null,null,null,null,null,""]
["",null,null,null,null,null,null,""]
["",null,null,null,null,null,null,""]
["",null,null,null,null,null,null,""]
["",null,null,null,null,null,null,""]
["",null,null,null,null,null,null,""]
["",null,null,null,null,null,null,{"$f":"IF(OR(F4304<>0,G4304),H4303+F4304-G4304,\"\")","v":""}]
["",null,null,null,null,null,null,""]
["",null,null,null,null,null,null,""]
["",null,null,null,null,null,null,""]
["",null,null,null,null,null,null,""]
["",null,null,null,null,null,null,""]
["",null,null,null,null,null,null,""]
["",null,null,null,null,null,null,""]
["",null,null,null,null,null,null,""]
["",null,null,null,null,null,null,""]
["",null,null,null,null,null,null,""]
["",null,null,null,null,null,null,""]
["",null,null,null,null,null,null,""]
["",null,null,null,null,null,null,""]
["",null,null,null,null,null,null,""]
["",null,null,null,null,null,null,""]
["",null,null,null,null,null,null,""]
["",null,null,null,null,null,null,""]
["",null,null,null,null,null,null,""]
["",null,null,null,null,null,null,""]
["",null,null,null,null,null,null,""]
["",null,null,null,null,null,null,""]
["",null,null,null,null,null,null,""]
["",null,null,null,null,null,null,""]
["",null,null,null,null,null,null,""]
["",null,null,null,null,null,null,""]
["",null,null,null,null,null,null,""]
["",null,null,null,null,null,null,""]
["",null,null,null,null,null,null,""]
["",null,null,null,null,null,null,""]
["",null,null,null,null,null,null,""]
["",null,null,null,null,null,null,""]
["",null,null,null,null,null,null,""]
["",null,null,null,null,null,null,""]
["",null,null,null,null,null,null,""]
["",null,null,null,null,null,null,""]
["",null,null,null,null,null,null,""]
["",null,null,null,null,null,null,""]
["",null,null,null,null,null,null,""]
["",null,null,null,null,null,null,""]
["",null,null,null,null,null,null,""]
["",null,null,null,null,null,null,""]
["",null,null,null,null,null,null,""]
["",null,null,null,null,null,null,""]
["",null,null,null,null,null,null,""]
["",null,null,null,null,null,null,""]
["",null,null,null,null,null,null,""]
["",null,null,null,null,null,null,""]
["",null,null,null,null,null,null,""]
["",null,null,null,null,null,null,""]
["",null,null,null,null,null,null,""]
["",null,null,null,null,null,null,""]
["",null,null,null,null,null,null,""]
["",null,null,null,null,null,null,""]
["",null,null,null,null,null,null,""]
["",null,null,null,null,null,null,""]
["",null,null,null,null,null,null,{"$f":"IF(OR(F4688<>0,G4688),H4687+F4688-G4688,\"\")","v":""}]
["",null,null,null,null,null,null,""]
["",null,null,null,null,null,null,""]
["",null,null,null,null,null,null,""]
["",null,null,null,null,null,null,""]
["",null,null,null,null,null,null,""]
["",null,null,null,null,null,null,""]
["",null,null,null,null,null,null,""]
["",null,null,null,null,null,null,""]
[{"$f":"IF(C4751=\"\",\"\",ROW()-13)","v":""},null,null,null,null,null,null,""]
["",null,null,null,null,null,null,""]
["",null,null,null,null,null,null,""]
["",null,null,null,null,null,null,""]
["",null,null,null,null,null,null,""]
["",null,null,null,null,null,null,""]
["",null,null,null,null,null,null,""]
["",null,null,null,null,null,null,""]
["",null,null,null,null,null,null,""]
["",null,null,null,null,null,null,""]
["",null,null,null,null,null,null,""]
["",null,null,null,null,null,null,""]
["",null,null,null,null,null,null,""]
["",null,null,null,null,null,null,""]
["",null,null,null,null,null,null,""]
["",null,null,null,null,null,null,""]
["",null,null,null,null,null,null,""]
["",null,null,null,null,null,null,""]
[{"$f":"IF(C4879=\"\",\"\",ROW()-13)","v":""},null,null,null,null,null,null,""]
["",null,null,null,null,null,null,""]
["",null,null,null,null,null,null,""]
["",null,null,null,null,null,null,""]
["",null,null,null,null,null,null,""]
["",null,null,null,null,null,null,""]
["",null,null,null,null,null,null,""]
["",null,null,null,null,null,null,""]
["",null,null,null,null,null,null,""]
["",null,null,null,null,null,null,""]
["",null,null,null,null,null,null,""]
["",null,null,null,null,null,null,""]
["",null,null,null,null,null,null,""]
["",null,null,null,null,null,null,""]
["",null,null,null,null,null,null,""]
["",null,null,null,null,null,null,""]
["",null,null,null,null,null,null,""]
["",null,null,null,null,null,null,""]
["",null,null,null,null,null,null,""]
["",null,null,null,null,null,null,""]
["",null,null,null,null,null,null,""]
["",null,null,null,null,null,null,""]
["",null,null,null,null,null,null,""]
["",null,null,null,null,null,null,""]
["",null,null,null,null,null,null,""]
["",null,null,null,null,null,null,""]
["",null,null,null,null,null,null,""]
["",null,null,null,null,null,null,""]
["",null,null,null,null,null,null,""]
["",null,null,null,null,null,null,""]
["",null,null,null,null,null,null,""]
["",null,null,null,null,null,null,""]
["",null,null,null,null,null,null,""]
["",null,null,null,null,null,null,""]
["",null,null,null,null,null,null,""]
["",null,null,null,null,null,null,""]
["",null,null,null,null,null,null,""]
["",null,null,null,null,null,null,""]
["",null,null,null,null,null,null,""]
["",null,null,null,null,null,null,""]
["",null,null,null,null,null,null,""]
["",null,null,null,null,null,null,""]
["",null,null,null,null,null,null,""]
["",null,null,null,null,null,null,""]
["",null,null,null,null,null,null,""]
["",null,null,null,null,null,null,""]
["",null,null,null,null,null,null,""]
["",null,null,null,null,null,null,""]
["",null,null,null,null,null,null,""]
["",null,null,null,null,null,null,""]
["",null,null,null,null,null,null,""]
["",null,null,null,null,null,null,""]
["",null,null,null,null,null,null,""]
["",null,null,null,null,null,null,""]
["",null,null,null,null,null,null,""]
["",null,null,null,null,null,null,""]
["",null,null,null,null,null,null,""]
["",null,null,null,null,null,null,""]
["",null,null,null,null,null,null,""]
["",null,null,null,null,null,null,""]
["",null,null,null,null,null,null,""]
["",null,null,null,null,null,null,""]
["",null,null,null,null,null,null,""]
["",null,null,null,null,null,null,""]
["",null,null,null,null,null,null,""]
["",null,null,null,null,null,null,""]
["",null,null,null,null,null,null,""]
["",null,null,null,null,null,null,""]
["",null,null,null,null,null,null,""]
["",null,null,null,null,null,null,""]
["",null,null,null,null,null,null,""]
["",null,null,null,null,null,null,""]
["",null,null,null,null,null,null,""]
["",null,null,null,null,null,null,""]
["",null,null,null,null,null,null,""]
["",null,null,null,null,null,null,""]
["",null,null,null,null,null,null,""]
["",null,null,null,null,null,null,""]
["",null,null,null,null,null,null,""]
["",null,null,null,null,null,null,""]
["",null,null,null,null,null,null,""]
["",null,null,null,null,null,null,""]
["",null,null,null,null,null,null,""]
[{"$f":"IF(C5455=\"\",\"\",ROW()-13)","v":""},null,null,null,null,null,null,""]
["",null,null,null,null,null,null,{"$f":"IF(OR(F5456<>0,G5456),H5455+F5456-G5456,\"\")","v":""}]
["",null,null,null,null,null,null,""]
["",null,null,null,null,null,null,""]
["",null,null,null,null,null,null,""]
["",null,null,null,null,null,null,""]
["",null,null,null,null,null,null,""]
["",null,null,null,null,null,null,""]
["",null,null,null,null,null,null,""]
["",null,null,null,null,null,null,""]
["",null,null,null,null,null,null,""]
["",null,null,null,null,null,null,""]
["",null,null,null,null,null,null,""]
["",null,null,null,null,null,null,""]
["",null,null,null,null,null,null,""]
["",null,null,null,null,null,null,""]
["",null,null,null,null,null,null,""]
["",null,null,null,null,null,null,""]
["",null,null,null,null,null,null,""]
["",null,null,null,null,null,null,""]
["",null,null,null,null,null,null,""]
["",null,null,null,null,null,null,""]
["",null,null,null,null,null,null,""]
["",null,null,null,null,null,null,""]
["",null,null,null,null,null,null,""]
["",null,null,null,null,null,null,""]
["",null,null,null,null,null,null,""]
["",null,null,null,null,null,null,""]
[{"$f":"IF(C5647=\"\",\"\",ROW()-13)","v":""},null,null,null,null,null,null,""]
["",null,null,null,null,null,null,""]
["",null,null,null,null,null,null,""]
["",null,null,null,null,null,null,""]
["",null,null,null,null,null,null,""]
["",null,null,null,null,null,null,""]
["",null,null,null,null,null,null,""]
["",null,null,null,null,null,null,""]
["",null,null,null,null,null,null,""]
["",null,null,null,null,null,null,""]
["",null,null,null,null,null,null,""]
["",null,null,null,null,null,null,""]
["",null,null,null,null,null,null,""]
["",null,null,null,null,null,null,""]
["",null,null,null,null,null,null,""]
["",null,null,null,null,null,null,""]
["",null,null,null,null,null,null,""]
["",null,null,null,null,null,null,""]
["",null,null,null,null,null,null,""]
["",null,null,null,null,null,null,""]
["",null,null,null,null,null,null,""]
["",null,null,null,null,null,null,""]
["",null,null,null,null,null,null,""]
["",null,null,null,null,null,null,""]
["",null,null,null,null,null,null,""]
["",null,null,null,null,null,null,""]
["",null,null,null,null,null,null,""]
["",null,null,null,null,null,null,""]
["",null,null,null,null,null,null,""]
["",null,null,null,null,null,null,""]
["",null,null,null,null,null,null,""]
["",null,null,null,null,null,null,""]
["",null,null,null,null,null,null,""]
["",null,null,null,null,null,null,""]
["",null,null,null,null,null,null,""]
["",null,null,null,null,null,null,""]
["",null,null,null,null,null,null,""]
["",null,null,null,null,null,null,""]
["",null,null,null,null,null,null,""]
["",null,null,null,null,null,null,""]
["",null,null,null,null,null,null,""]
["",null,null,null,null,null,null,""]
["",null,null,null,null,null,null,""]
["",null,null,null,null,null,null,""]
["",null,null,null,null,null,null,""]
["",null,null,null,null,null,null,""]
["",null,null,null,null,null,null,""]
["",null,null,null,null,null,null,""]
["",null,null,null,null,null,null,""]
["",null,null,null,null,null,null,""]
["",null,null,null,null,null,null,""]
["",null,null,null,null,null,null,""]
["",null,null,null,null,null,null,""]
["",null,null,null,null,null,null,""]
["",null,null,null,null,null,null,""]
["",null,null,null,null,null,null,""]
["",null,null,null,null,null,null,{"$f":"IF(OR(F6032<>0,G6032),H6031+F6032-G6032,\"\")","v":""}]
["",null,null,null,null,null,null,""]
["",null,null,null,null,null,null,""]
["",null,null,null,null,null,null,""]
["",null,null,null,null,null,null,""]
["",null,null,null,null,null,null,""]
["",null,null,null,null,null,null,""]
["",null,null,null,null,null,null,""]
["",null,null,null,null,null,null,""]
["",null,null,null,null,null,null,""]
["",null,null,null,null,null,null,""]
["",null,null,null,null,null,null,""]
["",null,null,null,null,null,null,""]
["",null,null,null,null,null,null,""]
["",null,null,null,null,null,null,""]
["",null,null,null,null,null,null,""]
["",null,null,null,null,null,null,""]
["",null,null,null,null,null,null,""]
["",null,null,null,null,null,null,""]
["",null,null,null,null,null,null,""]
["",null,null,null,null,null,null,""]
["",null,null,null,null,null,null,""]
["",null,null,null,null,null,null,""]
["",null,null,null,null,null,null,""]
["",null,null,null,null,null,null,""]
["",null,null,null,null,null,null,""]
["",null,null,null,null,null,null,""]
[{"$f":"IF(C6223=\"\",\"\",ROW()-13)","v":""},null,null,null,null,null,null,""]
["",null,null,null,null,null,null,""]
["",null,null,null,null,null,null,""]
["",null,null,null,null,null,null,""]
["",null,null,null,null,null,null,""]
["",null,null,null,null,null,null,""]
["",null,null,null,null,null,null,""]
["",null,null,null,null,null,null,""]
["",null,null,null,null,null,null,""]
["",null,null,null,null,null,null,""]
["",null,null,null,null,null,null,""]
["",null,null,null,null,null,null,""]
["",null,null,null,null,null,null,""]
["",null,null,null,null,null,null,""]
["",null,null,null,null,null,null,""]
["",null,null,null,null,null,null,""]
["",null,null,null,null,null,null,""]
["",null,null,null,null,null,null,""]
["",null,null,null,null,null,null,""]
["",null,null,null,null,null,null,{"$f":"IF(OR(F6352<>0,G6352),H6351+F6352-G6352,\"\")","v":""}]
["",null,null,null,null,null,null,""]
["",null,null,null,null,null,null,""]
["",null,null,null,null,null,null,""]
["",null,null,null,null,null,null,""]
["",null,null,null,null,null,null,""]
["",null,null,null,null,null,null,""]
["",null,null,null,null,null,null,""]
["",null,null,null,null,null,null,""]
["",null,null,null,null,null,null,""]
["",null,null,null,null,null,null,""]
["",null,null,null,null,null,null,""]
["",null,null,null,null,null,null,""]
["",null,null,null,null,null,null,""]
["",null,null,null,null,null,null,""]
["",null,null,null,null,null,null,""]
["",null,null,null,null,null,null,""]
["",null,null,null,null,null,null,""]
["",null,null,null,null,null,null,""]
["",null,null,null,null,null,null,""]
["",null,null,null,null,null,null,""]
["",null,null,null,null,null,null,""]
["",null,null,null,null,null,null,""]
["",null,null,null,null,null,null,""]
["",null,null,null,null,null,null,""]
["",null,null,null,null,null,null,""]
["",null,null,null,null,null,null,""]
["",null,null,null,null,null,null,""]
["",null,null,null,null,null,null,""]
["",null,null,null,null,null,null,""]
["",null,null,null,null,null,null,""]
["",null,null,null,null,null,null,""]
["",null,null,null,null,null,null,""]
["",null,null,null,null,null,null,""]
["",null,null,null,null,null,null,""]
["",null,null,null,null,null,null,""]
["",null,null,null,null,null,null,""]
["",null,null,null,null,null,null,{"$f":"IF(OR(F6608<>0,G6608),H6607+F6608-G6608,\"\")","v":""}]
["",null,null,null,null,null,null,""]
["",null,null,null,null,null,null,""]
["",null,null,null,null,null,null,""]
["",null,null,null,null,null,null,""]
["",null,null,null,null,null,null,""]
["",null,null,null,null,null,null,""]
["",null,null,null,null,null,null,""]
["",null,null,null,null,null,null,""]
["",null,null,null,null,null,null,""]
["",null,null,null,null,null,null,""]
["",null,null,null,null,null,null,""]
["",null,null,null,null,null,null,""]
["",null,null,null,null,null,null,""]
["",null,null,null,null,null,null,""]
["",null,null,null,null,null,null,""]
["",null,null,null,null,null,null,""]
["",null,null,null,null,null,null,""]
["",null,null,null,null,null,null,""]
["",null,null,null,null,null,null,""]
["",null,null,null,null,null,null,""]
["",null,null,null,null,null,null,""]
["",null,null,null,null,null,null,""]
["",null,null,null,null,null,null,""]
["",null,null,null,null,null,null,""]
["",null,null,null,null,null,null,""]
["",null,null,null,null,null,null,""]
[{"$f":"IF(C6799=\"\",\"\",ROW()-13)","v":""},null,null,null,null,null,null,""]
["",null,null,null,null,null,null,""]
["",null,null,null,null,null,null,""]
["",null,null,null,null,null,null,""]
["",null,null,null,null,null,null,""]
["",null,null,null,null,null,null,""]
["",null,null,null,null,null,null,""]
["",null,null,null,null,null,null,""]
["",null,null,null,null,null,null,""]
["",null,null,null,null,null,null,""]
["",null,null,null,null,null,null,""]
["",null,null,null,null,null,null,""]
["",null,null,null,null,null,null,""]
["",null,null,null,null,null,null,""]
["",null,null,null,null,null,null,""]
["",null,null,null,null,null,null,""]
["",null,null,null,null,null,null,""]
["",null,null,null,null,null,null,""]
["",null,null,null,null,null,null,""]
["",null,null,null,null,null,null,{"$f":"IF(OR(F6928<>0,G6928),H6927+F6928-G6928,\"\")","v":""}]
["",null,null,null,null,null,null,""]
["",null,null,null,null,null,null,""]
["",null,null,null,null,null,null,""]
["",null,null,null,null,null,null,""]
["",null,null,null,null,null,null,""]
["",null,null,null,null,null,null,""]
["",null,null,null,null,null,null,""]
["",null,null,null,null,null,null,""]
["",null,null,null,null,null,null,""]
["",null,null,null,null,null,null,""]
["",null,null,null,null,null,null,""]
["",null,null,null,null,null,null,""]
["",null,null,null,null,null,null,""]
["",null,null,null,null,null,null,""]
["",null,null,null,null,null,null,""]
["",null,null,null,null,null,null,""]
["",null,null,null,null,null,null,""]
["",null,null,null,null,null,null,""]
["",null,null,null,null,null,null,""]
["",null,null,null,null,null,null,""]
["",null,null,null,null,null,null,""]
["",null,null,null,null,null,null,""]
["",null,null,null,null,null,null,""]
["",null,null,null,null,null,null,""]
["",null,null,null,null,null,null,""]
["",null,null,null,null,null,null,""]
["",null,null,null,null,null,null,""]
["",null,null,null,null,null,null,""]
["",null,null,null,null,null,null,""]
["",null,null,null,null,null,null,""]
["",null,null,null,null,null,null,""]
["",null,null,null,null,null,null,""]
["",null,null,null,null,null,null,""]
["",null,null,null,null,null,null,""]
["",null,null,null,null,null,null,""]
["",null,null,null,null,null,null,""]
["",null,null,null,null,null,null,""]
["",null,null,null,null,null,null,""]
["",null,null,null,null,null,null,""]
["",null,null,null,null,null,null,""]
["",null,null,null,null,null,null,""]
["",null,null,null,null,null,null,""]
["",null,null,null,null,null,null,""]
["",null,null,null,null,null,null,""]
["",null,null,null,null,null,null,""]
["",null,null,null,null,null,null,""]
["",null,null,null,null,null,null,""]
["",null,null,null,null,null,null,""]
["",null,null,null,null,null,null,""]
["",null,null,null,null,null,null,""]
["",null,null,null,null,null,null,""]
["",null,null,null,null,null,null,""]
["",null,null,null,null,null,null,""]
["",null,null,null,null,null,null,""]
["",null,null,null,null,null,null,""]
["",null,null,null,null,null,null,""]
["",null,null,null,null,null,null,""]
["",null,null,null,null,null,null,""]
["",null,null,null,null,null,null,""]
["",null,null,null,null,null,null,""]
["",null,null,null,null,null,null,""]
["",null,null,null,null,null,null,""]
["",null,null,null,null,null,null,""]
["",null,null,null,null,null,null,""]
[{"$f":"IF(C7375=\"\",\"\",ROW()-13)","v":""},null,null,null,null,null,null,""]
["",null,null,null,null,null,null,""]
["",null,null,null,null,null,null,""]
["",null,null,null,null,null,null,""]
["",null,null,null,null,null,null,""]
["",null,null,null,null,null,null,""]
["",null,null,null,null,null,null,""]
["",null,null,null,null,null,null,""]
["",null,null,null,null,null,null,""]
["",null,null,null,null,null,null,""]
["",null,null,null,null,null,null,""]
["",null,null,null,null,null,null,""]
["",null,null,null,null,null,null,""]
["",null,null,null,null,null,null,""]
["",null,null,null,null,null,null,""]
["",null,null,null,null,null,null,""]
["",null,null,null,null,null,null,""]
["",null,null,null,null,null,null,""]
["",null,null,null,null,null,null,{"$f":"IF(OR(F7504<>0,G7504),H7503+F7504-G7504,\"\")","v":""}]
["",null,null,null,null,null,null,""]
["",null,null,null,null,null,null,""]
["",null,null,null,null,null,null,""]
["",null,null,null,null,null,null,""]
["",null,null,null,null,null,null,""]
["",null,null,null,null,null,null,""]
["",null,null,null,null,null,null,""]
["",null,null,null,null,null,null,""]
["",null,null,null,null,null,null,""]
["",null,null,null,null,null,null,""]
["",null,null,null,null,null,null,""]
["",null,null,null,null,null,null,""]
["",null,null,null,null,null,null,""]
["",null,null,null,null,null,null,""]
["",null,null,null,null,null,null,""]
["",null,null,null,null,null,null,""]
["",null,null,null,null,null,null,""]
["",null,null,null,null,null,null,""]
["",null,null,null,null,null,null,""]
["",null,null,null,null,null,null,""]
["",null,null,null,null,null,null,""]
["",null,null,null,null,null,null,""]
["",null,null,null,null,null,null,""]
["",null,null,null,null,null,null,""]
["",null,null,null,null,null,null,""]
["",null,null,null,null,null,null,""]
["",null,null,null,null,null,null,""]
["",null,null,null,null,null,null,{"$f":"IF(OR(F7696<>0,G7696),H7695+F7696-G7696,\"\")","v":""}]
["",null,null,null,null,null,null,""]
["",null,null,null,null,null,null,""]
["",null,null,null,null,null,null,""]
["",null,null,null,null,null,null,""]
["",null,null,null,null,null,null,""]
["",null,null,null,null,null,null,""]
["",null,null,null,null,null,null,""]
["",null,null,null,null,null,null,""]
["",null,null,null,null,null,null,""]
["",null,null,null,null,null,null,""]
["",null,null,null,null,null,null,""]
["",null,null,null,null,null,null,""]
["",null,null,null,null,null,null,""]
["",null,null,null,null,null,null,""]
["",null,null,null,null,null,null,""]
["",null,null,null,null,null,null,""]
["",null,null,null,null,null,null,""]
["",null,null,null,null,null,null,""]
["",null,null,null,null,null,null,""]
["",null,null,null,null,null,null,""]
["",null,null,null,null,null,null,""]
["",null,null,null,null,null,null,""]
["",null,null,null,null,null,null,""]
["",null,null,null,null,null,null,""]
["",null,null,null,null,null,null,""]
["",null,null,null,null,null,null,""]
["",null,null,null,null,null,null,""]
["",null,null,null,null,null,null,""]
["",null,null,null,null,null,null,""]
["",null,null,null,null,null,null,""]
["",null,null,null,null,null,null,""]
["",null,null,null,null,null,null,""]
["",null,null,null,null,null,null,""]
["",null,null,null,null,null,null,""]
["",null,null,null,null,null,null,""]
["",null,null,null,null,null,null,""]
[{"$f":"IF(C7951=\"\",\"\",ROW()-13)","v":""},null,null,null,null,null,null,""]
["",null,null,null,null,null,null,""]
["",null,null,null,null,null,null,""]
["",null,null,null,null,null,null,""]
["",null,null,null,null,null,null,""]
["",null,null,null,null,null,null,""]
["",null,null,null,null,null,null,""]
["",null,null,null,null,null,null,""]
["",null,null,null,null,null,null,""]
["",null,null,null,null,null,null,""]
["",null,null,null,null,null,null,""]
["",null,null,null,null,null,null,""]
["",null,null,null,null,null,null,""]
["",null,null,null,null,null,null,""]
["",null,null,null,null,null,null,""]
["",null,null,null,null,null,null,""]
["",null,null,null,null,null,null,""]
["",null,null,null,null,null,null,""]
["",null,null,null,null,null,null,""]
["",null,null,null,null,null,null,""]
["",null,null,null,null,null,null,""]
["",null,null,null,null,null,null,""]
["",null,null,null,null,null,null,""]
["",null,null,null,null,null,null,""]
["",null,null,null,null,null,null,""]
["",null,null,null,null,null,null,""]
["",null,null,null,null,null,null,""]
["",null,null,null,null,null,null,""]
[{"$f":"IF(C8143=\"\",\"\",ROW()-13)","v":""},null,null,null,null,null,null,""]
["",null,null,null,null,null,null,""]
["",null,null,null,null,null,null,""]
["",null,null,null,null,null,null,""]
["",null,null,null,null,null,null,""]
["",null,null,null,null,null,null,""]
["",null,null,null,null,null,null,""]
["",null,null,null,null,null,null,""]
["",null,null,null,null,null,null,""]
["",null,null,null,null,null,null,""]
["",null,null,null,null,null,null,""]
["",null,null,null,null,null,null,""]
["",null,null,null,null,null,null,""]
["",null,null,null,null,null,null,""]
["",null,null,null,null,null,null,""]
["",null,null,null,null,null,null,""]
["",null,null,null,null,null,null,""]
["",null,null,null,null,null,null,""]
["",null,null,null,null,null,null,{"$f":"IF(OR(F8272<>0,G8272),H8271+F8272-G8272,\"\")","v":""}]
["",null,null,null,null,null,null,""]
["",null,null,null,null,null,null,""]
["",null,null,null,null,null,null,""]
["",null,null,null,null,null,null,""]
["",null,null,null,null,null,null,""]
["",null,null,null,null,null,null,""]
["",null,null,null,null,null,null,""]
["",null,null,null,null,null,null,""]
["",null,null,null,null,null,null,""]
["",null,null,null,null,null,null,""]
["",null,null,null,null,null,null,""]
["",null,null,null,null,null,null,""]
["",null,null,null,null,null,null,""]
["",null,null,null,null,null,null,""]
["",null,null,null,null,null,null,""]
["",null,null,null,null,null,null,""]
["",null,null,null,null,null,null,""]
["",null,null,null,null,null,null,""]
["",null,null,null,null,null,null,""]
["",null,null,null,null,null,null,""]
["",null,null,null,null,null,null,""]
["",null,null,null,null,null,null,""]
["",null,null,null,null,null,null,""]
["",null,null,null,null,null,null,""]
["",null,null,null,null,null,null,""]
["",null,null,null,null,null,null,""]
["",null,null,null,null,null,null,""]
["",null,null,null,null,null,null,""]
["",null,null,null,null,null,null,""]
["",null,null,null,null,null,null,""]
["",null,null,null,null,null,null,""]
["",null,null,null,null,null,null,""]
["",null,null,null,null,null,null,""]
["",null,null,null,null,null,null,""]
["",null,null,null,null,null,null,""]
["",null,null,null,null,null,null,""]
["",null,null,null,null,null,null,""]
["",null,null,null,null,null,null,""]
["",null,null,null,null,null,null,""]
["",null,null,null,null,null,null,""]
["",null,null,null,null,null,null,""]
["",null,null,null,null,null,null,""]
["",null,null,null,null,null,null,""]
["",null,null,null,null,null,null,""]
["",null,null,null,null,null,null,""]
["",null,null,null,null,null,null,""]
["",null,null,null,null,null,null,""]
["",null,null,null,null,null,null,""]
["",null,null,null,null,null,null,""]
["",null,null,null,null,null,null,""]
["",null,null,null,null,null,null,""]
["",null,null,null,null,null,null,""]
["",null,null,null,null,null,null,""]
["",null,null,null,null,null,null,""]
["",null,null,null,null,null,null,""]
["",null,null,null,null,null,null,{"$f":"IF(OR(F8656<>0,G8656),H8655+F8656-G8656,\"\")","v":""}]
["",null,null,null,null,null,null,""]
["",null,null,null,null,null,null,""]
["",null,null,null,null,null,null,""]
["",null,null,null,null,null,null,""]
["",null,null,null,null,null,null,""]
["",null,null,null,null,null,null,""]
["",null,null,null,null,null,null,""]
["",null,null,null,null,null,null,""]
[{"$f":"IF(C8719=\"\",\"\",ROW()-13)","v":""},null,null,null,null,null,null,""]
["",null,null,null,null,null,null,""]
["",null,null,null,null,null,null,""]
["",null,null,null,null,null,null,""]
["",null,null,null,null,null,null,""]
["",null,null,null,null,null,null,""]
["",null,null,null,null,null,null,""]
["",null,null,null,null,null,null,""]
["",null,null,null,null,null,null,""]
["",null,null,null,null,null,null,""]
["",null,null,null,null,null,null,""]
["",null,null,null,null,null,null,""]
["",null,null,null,null,null,null,""]
["",null,null,null,null,null,null,""]
["",null,null,null,null,null,null,""]
["",null,null,null,null,null,null,""]
["",null,null,null,null,null,null,""]
["",null,null,null,null,null,null,""]
[{"$f":"IF(C8847=\"\",\"\",ROW()-13)","v":""},null,null,null,null,null,null,""]
["",null,null,null,null,null,null,""]
["",null,null,null,null,null,null,""]
["",null,null,null,null,null,null,""]
["",null,null,null,null,null,null,""]
["",null,null,null,null,null,null,""]
["",null,null,null,null,null,null,""]
["",null,null,null,null,null,null,""]
["",null,null,null,null,null,null,""]
["",null,null,null,null,null,null,""]
["",null,null,null,null,null,null,""]
["",null,null,null,null,null,null,""]
["",null,null,null,null,null,null,""]
["",null,null,null,null,null,null,""]
["",null,null,null,null,null,null,""]
["",null,null,null,null,null,null,""]
["",null,null,null,null,null,null,""]
["",null,null,null,null,null,null,""]
["",null,null,null,null,null,null,""]
["",null,null,null,null,null,null,""]
["",null,null,null,null,null,null,""]
["",null,null,null,null,null,null,""]
["",null,null,null,null,null,null,""]
["",null,null,null,null,null,null,""]
["",null,null,null,null,null,null,""]
["",null,null,null,null,null,null,""]
["",null,null,null,null,null,null,""]
["",null,null,null,null,null,null,""]
["",null,null,null,null,null,null,""]
["",null,null,null,null,null,null,""]
["",null,null,null,null,null,null,""]
["",null,null,null,null,null,null,""]
["",null,null,null,null,null,null,""]
["",null,null,null,null,null,null,""]
["",null,null,null,null,null,null,""]
["",null,null,null,null,null,null,""]
["",null,null,null,null,null,null,""]
["",null,null,null,null,null,null,""]
["",null,null,null,null,null,null,""]
["",null,null,null,null,null,null,""]
["",null,null,null,null,null,null,""]
["",null,null,null,null,null,null,""]
["",null,null,null,null,null,null,""]
["",null,null,null,null,null,null,""]
["",null,null,null,null,null,null,""]
["",null,null,null,null,null,null,""]
["",null,null,null,null,null,null,""]
["",null,null,null,null,null,null,""]
["",null,null,null,null,null,null,""]
["",null,null,null,null,null,null,""]
["",null,null,null,null,null,null,""]
["",null,null,null,null,null,null,""]
["",null,null,null,null,null,null,""]
["",null,null,null,null,null,null,""]
["",null,null,null,null,null,null,""]
["",null,null,null,null,null,null,""]
["",null,null,null,null,null,null,""]
["",null,null,null,null,null,null,""]
["",null,null,null,null,null,null,""]
["",null,null,null,null,null,null,""]
["",null,null,null,null,null,null,""]
["",null,null,null,null,null,null,""]
["",null,null,null,null,null,null,""]
["",null,null,null,null,null,null,""]
["",null,null,null,null,null,null,""]
["",null,null,null,null,null,null,""]
["",null,null,null,null,null,null,""]
["",null,null,null,null,null,null,""]
["",null,null,null,null,null,null,""]
["",null,null,null,null,null,null,""]
["",null,null,null,null,null,null,""]
["",null,null,null,null,null,null,""]
["",null,null,null,null,null,null,""]
["",null,null,null,null,null,null,""]
["",null,null,null,null,null,null,""]
["",null,null,null,null,null,null,""]
["",null,null,null,null,null,null,""]
["",null,null,null,null,null,null,""]
["",null,null,null,null,null,null,""]
["",null,null,null,null,null,null,""]
["",null,null,null,null,null,null,""]
["",null,null,null,null,null,null,""]
["",null,null,null,null,null,null,""]
[{"$f":"IF(C9423=\"\",\"\",ROW()-13)","v":""},null,null,null,null,null,null,""]
["",null,null,null,null,null,null,{"$f":"IF(OR(F9424<>0,G9424),H9423+F9424-G9424,\"\")","v":""}]
["",null,null,null,null,null,null,""]
["",null,null,null,null,null,null,""]
["",null,null,null,null,null,null,""]
["",null,null,null,null,null,null,""]
["",null,null,null,null,null,null,""]
["",null,null,null,null,null,null,""]
["",null,null,null,null,null,null,""]
["",null,null,null,null,null,null,""]
["",null,null,null,null,null,null,""]
["",null,null,null,null,null,null,""]
["",null,null,null,null,null,null,""]
["",null,null,null,null,null,null,""]
["",null,null,null,null,null,null,""]
["",null,null,null,null,null,null,""]
["",null,null,null,null,null,null,""]
["",null,null,null,null,null,null,""]
["",null,null,null,null,null,null,""]
["",null,null,null,null,null,null,""]
["",null,null,null,null,null,null,""]
["",null,null,null,null,null,null,""]
["",null,null,null,null,null,null,""]
["",null,null,null,null,null,null,""]
["",null,null,null,null,null,null,""]
["",null,null,null,null,null,null,""]
["",null,null,null,null,null,null,""]
["",null,null,null,null,null,null,""]
[{"$f":"IF(C9615=\"\",\"\",ROW()-13)","v":""},null,null,null,null,null,null,""]
["",null,null,null,null,null,null,""]
["",null,null,null,null,null,null,""]
["",null,null,null,null,null,null,""]
["",null,null,null,null,null,null,""]
["",null,null,null,null,null,null,""]
["",null,null,null,null,null,null,""]
["",null,null,null,null,null,null,""]
["",null,null,null,null,null,null,""]
["",null,null,null,null,null,null,""]
["",null,null,null,null,null,null,""]
["",null,null,null,null,null,null,""]
["",null,null,null,null,null,null,""]
["",null,null,null,null,null,null,""]
["",null,null,null,null,null,null,""]
["",null,null,null,null,null,null,""]
["",null,null,null,null,null,null,""]
["",null,null,null,null,null,null,""]
["",null,null,null,null,null,null,""]
["",null,null,null,null,null,null,""]
["",null,null,null,null,null,null,""]
["",null,null,null,null,null,null,""]
["",null,null,null,null,null,null,""]
["",null,null,null,null,null,null,""]
["",null,null,null,null,null,null,""]
["",null,null,null,null,null,null,""]
["",null,null,null,null,null,null,""]
["",null,null,null,null,null,null,""]
["",null,null,null,null,null,null,""]
["",null,null,null,null,null,null,""]
["",null,null,null,null,null,null,""]
["",null,null,null,null,null,null,""]
["",null,null,null,null,null,null,""]
["",null,null,null,null,null,null,""]
["",null,null,null,null,null,null,""]
["",null,null,null,null,null,null,""]
["",null,null,null,null,null,null,""]
["",null,null,null,null,null,null,""]
["",null,null,null,null,null,null,""]
["",null,null,null,null,null,null,""]
["",null,null,null,null,null,null,""]
["",null,null,null,null,null,null,""]
["",null,null,null,null,null,null,""]
["",null,null,null,null,null,null,""]
["",null,null,null,null,null,null,""]
["",null,null,null,null,null,null,""]
["",null,null,null,null,null,null,""]
["",null,null,null,null,null,null,""]
["",null,null,null,null,null,null,""]
["",null,null,null,null,null,null,""]
["",null,null,null,null,null,null,""]
["",null,null,null,null,null,null,""]
["",null,null,null,null,null,null,""]
["",null,null,null,null,null,null,""]
["",null,null,null,null,null,null,""]
["",null,null,null,null,null,null,""]
["",null,null,null,null,null,null,{"$f":"IF(OR(F10000<>0,G10000),H9999+F10000-G10000,\"\")","v":""}]
["",null,null,null,null,null,null,""]
["",null,null,null,null,null,null,""]
["",null,null,null,null,null,null,""]
["",null,null,null,null,null,null,""]
["",null,null,null,null,null,null,""]
["",null,null,null,null,null,null,""]
["",null,null,null,null,null,null,""]
["",null,null,null,null,null,null,""]
["",null,null,null,null,null,null,""]
["",null,null,null,null,null,null,""]
["",null,null,null,null,null,null,""]
["",null,null,null,null,null,null,""]
["",null,null,null,null,null,null,""]
["",null,null,null,null,null,null,""]
["",null,null,null,null,null,null,""]
["",null,null,null,null,null,null,""]
["",null,null,null,null,null,null,""]
["",null,null,null,null,null,null,""]
["",null,null,null,null,null,null,""]
["",null,null,null,null,null,null,""]
["",null,null,null,null,null,null,""]
["",null,null,null,null,null,null,""]
["",null,null,null,null,null,null,""]
["",null,null,null,null,null,null,""]
["",null,null,null,null,null,null,""]
["",null,null,null,null,null,null,""]
[{"$f":"IF(C10191=\"\",\"\",ROW()-13)","v":""},null,null,null,null,null,null,""]
["",null,null,null,null,null,null,""]
["",null,null,null,null,null,null,""]
["",null,null,null,null,null,null,""]
["",null,null,null,null,null,null,""]
["",null,null,null,null,null,null,""]
["",null,null,null,null,null,null,""]
["",null,null,null,null,null,null,""]
["",null,null,null,null,null,null,""]
["",null,null,null,null,null,null,""]
["",null,null,null,null,null,null,""]
["",null,null,null,null,null,null,""]
["",null,null,null,null,null,null,""]
["",null,null,null,null,null,null,""]
["",null,null,null,null,null,null,""]
["",null,null,null,null,null,null,""]
["",null,null,null,null,null,null,""]
["",null,null,null,null,null,null,""]
["",null,null,null,null,null,null,""]
["",null,null,null,null,null,null,{"$f":"IF(OR(F10320<>0,G10320),H10319+F10320-G10320,\"\")","v":""}]
["",null,null,null,null,null,null,""]
["",null,null,null,null,null,null,""]
["",null,null,null,null,null,null,""]
["",null,null,null,null,null,null,""]
["",null,null,null,null,null,null,""]
["",null,null,null,null,null,null,""]
["",null,null,null,null,null,null,""]
["",null,null,null,null,null,null,""]
["",null,null,null,null,null,null,""]
["",null,null,null,null,null,null,""]
["",null,null,null,null,null,null,""]
["",null,null,null,null,null,null,""]
["",null,null,null,null,null,null,""]
["",null,null,null,null,null,null,""]
["",null,null,null,null,null,null,""]
["",null,null,null,null,null,null,""]
["",null,null,null,null,null,null,""]
["",null,null,null,null,null,null,""]
["",null,null,null,null,null,null,""]
["",null,null,null,null,null,null,""]
["",null,null,null,null,null,null,""]
["",null,null,null,null,null,null,""]
["",null,null,null,null,null,null,""]
["",null,null,null,null,null,null,""]
["",null,null,null,null,null,null,""]
["",null,null,null,null,null,null,""]
["",null,null,null,null,null,null,""]
["",null,null,null,null,null,null,""]
["",null,null,null,null,null,null,""]
["",null,null,null,null,null,null,""]
["",null,null,null,null,null,null,""]
["",null,null,null,null,null,null,""]
["",null,null,null,null,null,null,""]
["",null,null,null,null,null,null,""]
["",null,null,null,null,null,null,""]
["",null,null,null,null,null,null,""]
["",null,null,null,null,null,null,""]
["",null,null,null,null,null,null,""]
["",null,null,null,null,null,null,""]
["",null,null,null,null,null,null,""]
["",null,null,null,null,null,null,""]
["",null,null,null,null,null,null,""]
["",null,null,null,null,null,null,""]
["",null,null,null,null,null,null,""]
["",null,null,null,null,null,null,""]
["",null,null,null,null,null,null,""]
["",null,null,null,null,null,null,""]
["",null,null,null,null,null,null,""]
["",null,null,null,null,null,null,""]
["",null,null,null,null,null,null,""]
["",null,null,null,null,null,null,""]
["",null,null,null,null,null,null,""]
["",null,null,null,null,null,null,""]
["",null,null,null,null,null,null,""]
["",null,null,null,null,null,null,""]
["",null,null,null,null,null,null,""]
["",null,null,null,null,null,null,""]
["",null,null,null,null,null,null,""]
["",null,null,null,null,null,null,""]
["",null,null,null,null,null,null,""]
["",null,null,null,null,null,null,""]
["",null,null,null,null,null,null,""]
["",null,null,null,null,null,null,""]
[{"$f":"IF(C10767=\"\",\"\",ROW()-13)","v":""},null,null,null,null,null,null,""]
["",null,null,null,null,null,null,""]
["",null,null,null,null,null,null,""]
["",null,null,null,null,null,null,""]
["",null,null,null,null,null,null,""]
["",null,null,null,null,null,null,""]
["",null,null,null,null,null,null,""]
["",null,null,null,null,null,null,""]
["",null,null,null,null,null,null,""]
["",null,null,null,null,null,null,""]
["",null,null,null,null,null,null,""]
["",null,null,null,null,null,null,""]
["",null,null,null,null,null,null,""]
["",null,null,null,null,null,null,""]
["",null,null,null,null,null,null,""]
["",null,null,null,null,null,null,""]
["",null,null,null,null,null,null,""]
["",null,null,null,null,null,null,""]
["",null,null,null,null,null,null,""]
["",null,null,null,null,null,null,{"$f":"IF(OR(F10896<>0,G10896),H10895+F10896-G10896,\"\")","v":""}]
["",null,null,null,null,null,null,""]
["",null,null,null,null,null,null,""]
["",null,null,null,null,null,null,""]
["",null,null,null,null,null,null,""]
["",null,null,null,null,null,null,""]
["",null,null,null,null,null,null,""]
["",null,null,null,null,null,null,""]
["",null,null,null,null,null,null,""]
["",null,null,null,null,null,null,""]
["",null,null,null,null,null,null,""]
["",null,null,null,null,null,null,""]
["",null,null,null,null,null,null,""]
["",null,null,null,null,null,null,""]
["",null,null,null,null,null,null,""]
["",null,null,null,null,null,null,""]
["",null,null,null,null,null,null,""]
["",null,null,null,null,null,null,""]
["",null,null,null,null,null,null,""]
["",null,null,null,null,null,null,""]
["",null,null,null,null,null,null,""]
["",null,null,null,null,null,null,""]
["",null,null,null,null,null,null,""]
["",null,null,null,null,null,null,""]
["",null,null,null,null,null,null,""]
["",null,null,null,null,null,null,""]
["",null,null,null,null,null,null,""]
["",null,null,null,null,null,null,""]
["",null,null,null,null,null,null,""]
["",null,null,null,null,null,null,""]
["",null,null,null,null,null,null,""]
["",null,null,null,null,null,null,""]
["",null,null,null,null,null,null,""]
["",null,null,null,null,null,null,""]
["",null,null,null,null,null,null,""]
["",null,null,null,null,null,null,""]
["",null,null,null,null,null,null,""]
["",null,null,null,null,null,null,""]
["",null,null,null,null,null,null,""]
["",null,null,null,null,null,null,""]
["",null,null,null,null,null,null,""]
["",null,null,null,null,null,null,""]
["",null,null,null,null,null,null,""]
["",null,null,null,null,null,null,""]
["",null,null,null,null,null,null,""]
["",null,null,null,null,null,null,""]
["",null,null,null,null,null,null,""]
["",null,null,null,null,null,null,""]
["",null,null,null,null,null,null,""]
["",null,null,null,null,null,null,""]
["",null,null,null,null,null,null,""]
["",null,null,null,null,null,null,""]
["",null,null,null,null,null,null,""]
["",null,null,null,null,null,null,""]
["",null,null,null,null,null,null,""]
["",null,null,null,null,null,null,""]
["",null,null,null,null,null,null,""]
["",null,null,null,null,null,null,""]
["",null,null,null,null,null,null,""]
["",null,null,null,null,null,null,""]
["",null,null,null,null,null,null,""]
["",null,null,null,null,null,null,""]
["",null,null,null,null,null,null,""]
["",null,null,null,null,null,null,""]
["",null,null,null,null,null,null,""]
[{"$f":"IF(C11343=\"\",\"\",ROW()-13)","v":""},null,null,null,null,null,null,""]
["",null,null,null,null,null,null,""]
["",null,null,null,null,null,null,""]
["",null,null,null,null,null,null,""]
["",null,null,null,null,null,null,""]
["",null,null,null,null,null,null,""]
["",null,null,null,null,null,null,""]
["",null,null,null,null,null,null,""]
["",null,null,null,null,null,null,""]
["",null,null,null,null,null,null,""]
["",null,null,null,null,null,null,""]
["",null,null,null,null,null,null,""]
["",null,null,null,null,null,null,""]
["",null,null,null,null,null,null,""]
["",null,null,null,null,null,null,""]
["",null,null,null,null,null,null,""]
["",null,null,null,null,null,null,""]
["",null,null,null,null,null,null,""]
["",null,null,null,null,null,null,{"$f":"IF(OR(F11472<>0,G11472),H11471+F11472-G11472,\"\")","v":""}]
["",null,null,null,null,null,null,""]
["",null,null,null,null,null,null,""]
["",null,null,null,null,null,null,""]
["",null,null,null,null,null,null,""]
["",null,null,null,null,null,null,""]
["",null,null,null,null,null,null,""]
["",null,null,null,null,null,null,""]
["",null,null,null,null,null,null,""]
["",null,null,null,null,null,null,""]
["",null,null,null,null,null,null,""]
["",null,null,null,null,null,null,""]
["",null,null,null,null,null,null,""]
["",null,null,null,null,null,null,""]
["",null,null,null,null,null,null,""]
["",null,null,null,null,null,null,""]
["",null,null,null,null,null,null,""]
["",null,null,null,null,null,null,""]
["",null,null,null,null,null,null,""]
["",null,null,null,null,null,null,""]
["",null,null,null,null,null,null,""]
["",null,null,null,null,null,null,""]
["",null,null,null,null,null,null,""]
["",null,null,null,null,null,null,""]
["",null,null,null,null,null,null,""]
["",null,null,null,null,null,null,""]
["",null,null,null,null,null,null,""]
["",null,null,null,null,null,null,""]
["",null,null,null,null,null,null,{"$f":"IF(OR(F11664<>0,G11664),H11663+F11664-G11664,\"\")","v":""}]
["",null,null,null,null,null,null,""]
["",null,null,null,null,null,null,""]
["",null,null,null,null,null,null,""]
["",null,null,null,null,null,null,""]
["",null,null,null,null,null,null,""]
["",null,null,null,null,null,null,""]
["",null,null,null,null,null,null,""]
["",null,null,null,null,null,null,""]
["",null,null,null,null,null,null,""]
["",null,null,null,null,null,null,""]
["",null,null,null,null,null,null,""]
["",null,null,null,null,null,null,""]
["",null,null,null,null,null,null,""]
["",null,null,null,null,null,null,""]
["",null,null,null,null,null,null,""]
["",null,null,null,null,null,null,""]
["",null,null,null,null,null,null,""]
["",null,null,null,null,null,null,""]
["",null,null,null,null,null,null,""]
["",null,null,null,null,null,null,""]
["",null,null,null,null,null,null,""]
["",null,null,null,null,null,null,""]
["",null,null,null,null,null,null,""]
["",null,null,null,null,null,null,""]
["",null,null,null,null,null,null,""]
["",null,null,null,null,null,null,""]
["",null,null,null,null,null,null,""]
["",null,null,null,null,null,null,""]
["",null,null,null,null,null,null,""]
["",null,null,null,null,null,null,""]
["",null,null,null,null,null,null,""]
["",null,null,null,null,null,null,""]
["",null,null,null,null,null,null,""]
["",null,null,null,null,null,null,""]
["",null,null,null,null,null,null,""]
["",null,null,null,null,null,null,""]
["",null,null,null,null,null,null,""]
["",null,null,null,null,null,null,""]
["",null,null,null,null,null,null,""]
["",null,null,null,null,null,null,""]
["",null,null,null,null,null,null,""]
["",null,null,null,null,null,null,""]
["",null,null,null,null,null,null,""]
["",null,null,null,null,null,null,""]
["",null,null,null,null,null,null,""]
["",null,null,null,null,null,null,""]
["",null,null,null,null,null,null,""]
["",null,null,null,null,null,null,""]
["",null,null,null,null,null,null,""]
["",null,null,null,null,null,null,""]
["",null,null,null,null,null,null,""]
["",null,null,null,null,null,null,""]
["",null,null,null,null,null,null,""]
["",null,null,null,null,null,null,""]
["",null,null,null,null,null,null,""]
["",null,null,null,null,null,null,""]
["",null,null,null,null,null,null,""]
["",null,null,null,null,null,null,""]
["",null,null,null,null,null,null,""]
["",null,null,null,null,null,null,""]
["",null,null,null,null,null,null,""]
["",null,null,null,null,null,null,""]
["",null,null,null,null,null,null,""]
["",null,null,null,null,null,null,""]
[{"$f":"IF(C12111=\"\",\"\",ROW()-13)","v":""},null,null,null,null,null,null,""]
["",null,null,null,null,null,null,""]
["",null,null,null,null,null,null,""]
["",null,null,null,null,null,null,""]
["",null,null,null,null,null,null,""]
["",null,null,null,null,null,null,""]
["",null,null,null,null,null,null,""]
["",null,null,null,null,null,null,""]
["",null,null,null,null,null,null,""]
["",null,null,null,null,null,null,""]
["",null,null,null,null,null,null,""]
["",null,null,null,null,null,null,""]
["",null,null,null,null,null,null,""]
["",null,null,null,null,null,null,""]
["",null,null,null,null,null,null,""]
["",null,null,null,null,null,null,""]
["",null,null,null,null,null,null,""]
["",null,null,null,null,null,null,""]
["",null,null,null,null,null,null,{"$f":"IF(OR(F12240<>0,G12240),H12239+F12240-G12240,\"\")","v":""}]
["",null,null,null,null,null,null,""]
["",null,null,null,null,null,null,""]
["",null,null,null,null,null,null,""]
["",null,null,null,null,null,null,""]
["",null,null,null,null,null,null,""]
["",null,null,null,null,null,null,""]
["",null,null,null,null,null,null,""]
["",null,null,null,null,null,null,""]
["",null,null,null,null,null,null,""]
["",null,null,null,null,null,null,""]
["",null,null,null,null,null,null,""]
["",null,null,null,null,null,null,""]
["",null,null,null,null,null,null,""]
["",null,null,null,null,null,null,""]
["",null,null,null,null,null,null,""]
["",null,null,null,null,null,null,""]
["",null,null,null,null,null,null,""]
["",null,null,null,null,null,null,""]
["",null,null,null,null,null,null,""]
["",null,null,null,null,null,null,""]
["",null,null,null,null,null,null,""]
["",null,null,null,null,null,null,""]
["",null,null,null,null,null,null,""]
["",null,null,null,null,null,null,""]
["",null,null,null,null,null,null,""]
["",null,null,null,null,null,null,""]
["",null,null,null,null,null,null,""]
["",null,null,null,null,null,null,""]
["",null,null,null,null,null,null,""]
["",null,null,null,null,null,null,""]
["",null,null,null,null,null,null,""]
["",null,null,null,null,null,null,""]
["",null,null,null,null,null,null,""]
["",null,null,null,null,null,null,""]
["",null,null,null,null,null,null,""]
["",null,null,null,null,null,null,""]
["",null,null,null,null,null,null,""]
["",null,null,null,null,null,null,""]
["",null,null,null,null,null,null,""]
["",null,null,null,null,null,null,""]
["",null,null,null,null,null,null,""]
["",null,null,null,null,null,null,""]
["",null,null,null,null,null,null,""]
["",null,null,null,null,null,null,""]
["",null,null,null,null,null,null,""]
["",null,null,null,null,null,null,""]
["",null,null,null,null,null,null,""]
["",null,null,null,null,null,null,""]
["",null,null,null,null,null,null,""]
["",null,null,null,null,null,null,""]
["",null,null,null,null,null,null,""]
["",null,null,null,null,null,null,""]
["",null,null,null,null,null,null,""]
["",null,null,null,null,null,null,""]
["",null,null,null,null,null,null,""]
["",null,null,null,null,null,null,""]
["",null,null,null,null,null,null,""]
["",null,null,null,null,null,null,""]
["",null,null,null,null,null,null,""]
["",null,null,null,null,null,null,""]
["",null,null,null,null,null,null,""]
["",null,null,null,null,null,null,""]
["",null,null,null,null,null,null,""]
["",null,null,null,null,null,null,""]
[{"$f":"IF(C12687=\"\",\"\",ROW()-13)","v":""},null,null,null,null,null,null,""]
["",null,null,null,null,null,null,""]
["",null,null,null,null,null,null,""]
["",null,null,null,null,null,null,""]
["",null,null,null,null,null,null,""]
["",null,null,null,null,null,null,""]
["",null,null,null,null,null,null,""]
["",null,null,null,null,null,null,""]
["",null,null,null,null,null,null,""]
["",null,null,null,null,null,null,""]
["",null,null,null,null,null,null,""]
["",null,null,null,null,null,null,""]
["",null,null,null,null,null,null,""]
["",null,null,null,null,null,null,""]
["",null,null,null,null,null,null,""]
["",null,null,null,null,null,null,""]
["",null,null,null,null,null,null,""]
["",null,null,null,null,null,null,""]
[{"$f":"IF(C12815=\"\",\"\",ROW()-13)","v":""},null,null,null,null,null,null,""]
["",null,null,null,null,null,null,""]
["",null,null,null,null,null,null,""]
["",null,null,null,null,null,null,""]
["",null,null,null,null,null,null,""]
["",null,null,null,null,null,null,""]
["",null,null,null,null,null,null,""]
["",null,null,null,null,null,null,""]
["",null,null,null,null,null,null,""]
["",null,null,null,null,null,null,""]
["",null,null,null,null,null,null,""]
["",null,null,null,null,null,null,""]
["",null,null,null,null,null,null,""]
["",null,null,null,null,null,null,""]
["",null,null,null,null,null,null,""]
["",null,null,null,null,null,null,""]
["",null,null,null,null,null,null,""]
["",null,null,null,null,null,null,""]
["",null,null,null,null,null,null,""]
["",null,null,null,null,null,null,""]
["",null,null,null,null,null,null,""]
["",null,null,null,null,null,null,""]
["",null,null,null,null,null,null,""]
["",null,null,null,null,null,null,""]
["",null,null,null,null,null,null,""]
["",null,null,null,null,null,null,""]
["",null,null,null,null,null,null,""]
["",null,null,null,null,null,null,""]
[{"$f":"IF(C13007=\"\",\"\",ROW()-13)","v":""},null,null,null,null,null,null,""]
["",null,null,null,null,null,null,""]
["",null,null,null,null,null,null,""]
["",null,null,null,null,null,null,""]
["",null,null,null,null,null,null,""]
["",null,null,null,null,null,null,""]
["",null,null,null,null,null,null,""]
["",null,null,null,null,null,null,""]
["",null,null,null,null,null,null,""]
["",null,null,null,null,null,null,""]
["",null,null,null,null,null,null,""]
["",null,null,null,null,null,null,""]
["",null,null,null,null,null,null,""]
["",null,null,null,null,null,null,""]
["",null,null,null,null,null,null,""]
["",null,null,null,null,null,null,""]
["",null,null,null,null,null,null,""]
["",null,null,null,null,null,null,""]
["",null,null,null,null,null,null,""]
["",null,null,null,null,null,null,""]
["",null,null,null,null,null,null,""]
["",null,null,null,null,null,null,""]
["",null,null,null,null,null,null,""]
["",null,null,null,null,null,null,""]
["",null,null,null,null,null,null,""]
["",null,null,null,null,null,null,""]
["",null,null,null,null,null,null,""]
["",null,null,null,null,null,null,""]
["",null,null,null,null,null,null,""]
["",null,null,null,null,null,null,""]
["",null,null,null,null,null,null,""]
["",null,null,null,null,null,null,""]
["",null,null,null,null,null,null,""]
["",null,null,null,null,null,null,""]
["",null,null,null,null,null,null,""]
["",null,null,null,null,null,null,""]
["",null,null,null,null,null,null,""]
["",null,null,null,null,null,null,""]
["",null,null,null,null,null,null,""]
["",null,null,null,null,null,null,""]
["",null,null,null,null,null,null,""]
["",null,null,null,null,null,null,""]
["",null,null,null,null,null,null,""]
["",null,null,null,null,null,null,""]
["",null,null,null,null,null,null,""]
["",null,null,null,null,null,null,""]
["",null,null,null,null,null,null,""]
["",null,null,null,null,null,null,""]
["",null,null,null,null,null,null,""]
["",null,null,null,null,null,null,""]
["",null,null,null,null,null,null,""]
["",null,null,null,null,null,null,""]
["",null,null,null,null,null,null,""]
["",null,null,null,null,null,null,""]
["",null,null,null,null,null,null,""]
["",null,null,null,null,null,null,""]
["",null,null,null,null,null,null,{"$f":"IF(OR(F13392<>0,G13392),H13391+F13392-G13392,\"\")","v":""}]
["",null,null,null,null,null,null,""]
["",null,null,null,null,null,null,""]
["",null,null,null,null,null,null,""]
["",null,null,null,null,null,null,""]
["",null,null,null,null,null,null,""]
["",null,null,null,null,null,null,""]
["",null,null,null,null,null,null,""]
["",null,null,null,null,null,null,""]
["",null,null,null,null,null,null,""]
["",null,null,null,null,null,null,""]
["",null,null,null,null,null,null,""]
["",null,null,null,null,null,null,""]
["",null,null,null,null,null,null,""]
["",null,null,null,null,null,null,""]
["",null,null,null,null,null,null,""]
["",null,null,null,null,null,null,""]
["",null,null,null,null,null,null,""]
["",null,null,null,null,null,null,""]
["",null,null,null,null,null,null,""]
["",null,null,null,null,null,null,""]
["",null,null,null,null,null,null,""]
["",null,null,null,null,null,null,""]
["",null,null,null,null,null,null,""]
["",null,null,null,null,null,null,""]
["",null,null,null,null,null,null,""]
["",null,null,null,null,null,null,""]
[{"$f":"IF(C13583=\"\",\"\",ROW()-13)","v":""},null,null,null,null,null,null,""]
["",null,null,null,null,null,null,""]
["",null,null,null,null,null,null,""]
["",null,null,null,null,null,null,""]
["",null,null,null,null,null,null,""]
["",null,null,null,null,null,null,""]
["",null,null,null,null,null,null,""]
["",null,null,null,null,null,null,""]
["",null,null,null,null,null,null,""]
["",null,null,null,null,null,null,""]
["",null,null,null,null,null,null,""]
["",null,null,null,null,null,null,""]
["",null,null,null,null,null,null,""]
["",null,null,null,null,null,null,""]
["",null,null,null,null,null,null,""]
["",null,null,null,null,null,null,""]
["",null,null,null,null,null,null,""]
["",null,null,null,null,null,null,""]
["",null,null,null,null,null,null,""]
["",null,null,null,null,null,null,""]
["",null,null,null,null,null,null,""]
["",null,null,null,null,null,null,""]
["",null,null,null,null,null,null,""]
["",null,null,null,null,null,null,""]
["",null,null,null,null,null,null,""]
["",null,null,null,null,null,null,""]
["",null,null,null,null,null,null,""]
["",null,null,null,null,null,null,""]
["",null,null,null,null,null,null,""]
["",null,null,null,null,null,null,""]
["",null,null,null,null,null,null,""]
["",null,null,null,null,null,null,""]
["",null,null,null,null,null,null,""]
["",null,null,null,null,null,null,""]
["",null,null,null,null,null,null,""]
["",null,null,null,null,null,null,""]
["",null,null,null,null,null,null,""]
["",null,null,null,null,null,null,""]
["",null,null,null,null,null,null,""]
["",null,null,null,null,null,null,""]
["",null,null,null,null,null,null,""]
["",null,null,null,null,null,null,""]
["",null,null,null,null,null,null,""]
["",null,null,null,null,null,null,""]
["",null,null,null,null,null,null,""]
["",null,null,null,null,null,null,""]
["",null,null,null,null,null,null,""]
["",null,null,null,null,null,null,""]
["",null,null,null,null,null,null,""]
["",null,null,null,null,null,null,""]
["",null,null,null,null,null,null,""]
["",null,null,null,null,null,null,""]
["",null,null,null,null,null,null,""]
["",null,null,null,null,null,null,""]
["",null,null,null,null,null,null,""]
["",null,null,null,null,null,null,""]
["",null,null,null,null,null,null,{"$f":"IF(OR(F13968<>0,G13968),H13967+F13968-G13968,\"\")","v":""}]
["",null,null,null,null,null,null,""]
["",null,null,null,null,null,null,""]
["",null,null,null,null,null,null,""]
["",null,null,null,null,null,null,""]
["",null,null,null,null,null,null,""]
["",null,null,null,null,null,null,""]
["",null,null,null,null,null,null,""]
["",null,null,null,null,null,null,""]
["",null,null,null,null,null,null,""]
["",null,null,null,null,null,null,""]
["",null,null,null,null,null,null,""]
["",null,null,null,null,null,null,""]
["",null,null,null,null,null,null,""]
["",null,null,null,null,null,null,""]
["",null,null,null,null,null,null,""]
["",null,null,null,null,null,null,""]
["",null,null,null,null,null,null,""]
["",null,null,null,null,null,null,""]
["",null,null,null,null,null,null,""]
["",null,null,null,null,null,null,""]
["",null,null,null,null,null,null,""]
["",null,null,null,null,null,null,""]
["",null,null,null,null,null,null,""]
["",null,null,null,null,null,null,""]
["",null,null,null,null,null,null,""]
["",null,null,null,null,null,null,""]
[{"$f":"IF(C14159=\"\",\"\",ROW()-13)","v":""},null,null,null,null,null,null,""]
["",null,null,null,null,null,null,""]
["",null,null,null,null,null,null,""]
["",null,null,null,null,null,null,""]
["",null,null,null,null,null,null,""]
["",null,null,null,null,null,null,""]
["",null,null,null,null,null,null,""]
["",null,null,null,null,null,null,""]
["",null,null,null,null,null,null,""]
["",null,null,null,null,null,null,""]
["",null,null,null,null,null,null,""]
["",null,null,null,null,null,null,""]
["",null,null,null,null,null,null,""]
["",null,null,null,null,null,null,""]
["",null,null,null,null,null,null,""]
["",null,null,null,null,null,null,""]
["",null,null,null,null,null,null,""]
["",null,null,null,null,null,null,""]
["",null,null,null,null,null,null,""]
["",null,null,null,null,null,null,{"$f":"IF(OR(F14288<>0,G14288),H14287+F14288-G14288,\"\")","v":""}]
["",null,null,null,null,null,null,""]
["",null,null,null,null,null,null,""]
["",null,null,null,null,null,null,""]
["",null,null,null,null,null,null,""]
["",null,null,null,null,null,null,""]
["",null,null,null,null,null,null,""]
["",null,null,null,null,null,null,""]
["",null,null,null,null,null,null,""]
["",null,null,null,null,null,null,""]
["",null,null,null,null,null,null,""]
["",null,null,null,null,null,null,""]
["",null,null,null,null,null,null,""]
["",null,null,null,null,null,null,""]
["",null,null,null,null,null,null,""]
["",null,null,null,null,null,null,""]
["",null,null,null,null,null,null,""]
["",null,null,null,null,null,null,""]
["",null,null,null,null,null,null,""]
["",null,null,null,null,null,null,""]
["",null,null,null,null,null,null,""]
["",null,null,null,null,null,null,""]
["",null,null,null,null,null,null,""]
["",null,null,null,null,null,null,""]
["",null,null,null,null,null,null,""]
["",null,null,null,null,null,null,""]
["",null,null,null,null,null,null,""]
["",null,null,null,null,null,null,""]
["",null,null,null,null,null,null,""]
["",null,null,null,null,null,null,""]
["",null,null,null,null,null,null,""]
["",null,null,null,null,null,null,""]
["",null,null,null,null,null,null,""]
["",null,null,null,null,null,null,""]
["",null,null,null,null,null,null,""]
["",null,null,null,null,null,null,""]
["",null,null,null,null,null,null,""]
["",null,null,null,null,null,null,""]
["",null,null,null,null,null,null,""]
["",null,null,null,null,null,null,""]
["",null,null,null,null,null,null,""]
["",null,null,null,null,null,null,""]
["",null,null,null,null,null,null,""]
["",null,null,null,null,null,null,""]
["",null,null,null,null,null,null,""]
["",null,null,null,null,null,null,""]
["",null,null,null,null,null,null,""]
["",null,null,null,null,null,null,""]
["",null,null,null,null,null,null,""]
["",null,null,null,null,null,null,""]
["",null,null,null,null,null,null,""]
["",null,null,null,null,null,null,""]
["",null,null,null,null,null,null,""]
["",null,null,null,null,null,null,""]
["",null,null,null,null,null,null,""]
["",null,null,null,null,null,null,""]
["",null,null,null,null,null,null,""]
["",null,null,null,null,null,null,""]
["",null,null,null,null,null,null,""]
["",null,null,null,null,null,null,""]
["",null,null,null,null,null,null,""]
["",null,null,null,null,null,null,""]
["",null,null,null,null,null,null,""]
["",null,null,null,null,null,null,""]
[{"$f":"IF(C14735=\"\",\"\",ROW()-13)","v":""},null,null,null,null,null,null,""]
["",null,null,null,null,null,null,{"$f":"IF(OR(F14736<>0,G14736),H14735+F14736-G14736,\"\")","v":""}]
["",null,null,null,null,null,null,""]
["",null,null,null,null,null,null,""]
["",null,null,null,null,null,null,""]
["",null,null,null,null,null,null,""]
["",null,null,null,null,null,null,""]
["",null,null,null,null,null,null,""]
["",null,null,null,null,null,null,""]
["",null,null,null,null,null,null,""]
["",null,null,null,null,null,null,""]
["",null,null,null,null,null,null,""]
["",null,null,null,null,null,null,""]
["",null,null,null,null,null,null,""]
["",null,null,null,null,null,null,""]
["",null,null,null,null,null,null,""]
["",null,null,null,null,null,null,""]
["",null,null,null,null,null,null,""]
["",null,null,null,null,null,null,""]
["",null,null,null,null,null,null,{"$f":"IF(OR(F14864<>0,G14864),H14863+F14864-G14864,\"\")","v":""}]
["",null,null,null,null,null,null,""]
["",null,null,null,null,null,null,""]
["",null,null,null,null,null,null,""]
["",null,null,null,null,null,null,""]
["",null,null,null,null,null,null,""]
["",null,null,null,null,null,null,""]
["",null,null,null,null,null,null,""]
["",null,null,null,null,null,null,""]
["",null,null,null,null,null,null,{"$f":"IF(OR(F14928<>0,G14928),H14927+F14928-G14928,\"\")","v":""}]
["",null,null,null,null,null,null,""]
["",null,null,null,null,null,null,""]
["",null,null,null,null,null,null,""]
["",null,null,null,null,null,null,""]
["",null,null,null,null,null,null,""]
["",null,null,null,null,null,null,""]
["",null,null,null,null,null,null,""]
["",null,null,null,null,null,null,""]
["",null,null,null,null,null,null,""]
["",null,null,null,null,null,null,""]
["",null,null,null,null,null,null,""]
["",null,null,null,null,null,null,""]
["",null,null,null,null,null,null,""]
["",null,null,null,null,null,null,""]
["",null,null,null,null,null,null,""]
["",null,null,null,null,null,null,""]
["",null,null,null,null,null,null,""]
["",null,null,null,null,null,null,""]
["",null,null,null,null,null,null,""]
["",null,null,null,null,null,null,""]
["",null,null,null,null,null,null,""]
["",null,null,null,null,null,null,""]
["",null,null,null,null,null,null,""]
["",null,null,null,null,null,null,""]
["",null,null,null,null,null,null,""]
["",null,null,null,null,null,null,""]
["",null,null,null,null,null,null,""]
["",null,null,null,null,null,null,""]
["",null,null,null,null,null,null,""]
["",null,null,null,null,null,null,""]
["",null,null,null,null,null,null,""]
["",null,null,null,null,null,null,""]
["",null,null,null,null,null,null,""]
["",null,null,null,null,null,null,""]
["",null,null,null,null,null,null,""]
["",null,null,null,null,null,null,""]
["",null,null,null,null,null,null,""]
["",null,null,null,null,null,null,""]
["",null,null,null,null,null,null,""]
["",null,null,null,null,null,null,""]
["",null,null,null,null,null,null,""]
["",null,null,null,null,null,null,""]
["",null,null,null,null,null,null,""]
["",null,null,null,null,null,null,""]
["",null,null,null,null,null,null,""]
["",null,null,null,null,null,null,""]
["",null,null,null,null,null,null,""]
["",null,null,null,null,null,null,""]
["",null,null,null,null,null,null,""]
["",null,null,null,null,null,null,""]
["",null,null,null,null,null,null,""]
["",null,null,null,null,null,null,""]
["",null,null,null,null,null,null,""]
["",null,null,null,null,null,null,""]
["",null,null,null,null,null,null,""]
[{"$f":"IF(C15311=\"\",\"\",ROW()-13)","v":""},null,null,null,null,null,null,""]
["",null,null,null,null,null,null,""]
["",null,null,null,null,null,null,""]
["",null,null,null,null,null,null,""]
["",null,null,null,null,null,null,""]
["",null,null,null,null,null,null,""]
["",null,null,null,null,null,null,""]
["",null,null,null,null,null,null,""]
["",null,null,null,null,null,null,""]
["",null,null,null,null,null,null,""]
["",null,null,null,null,null,null,""]
["",null,null,null,null,null,null,""]
["",null,null,null,null,null,null,""]
["",null,null,null,null,null,null,""]
["",null,null,null,null,null,null,""]
["",null,null,null,null,null,null,""]
["",null,null,null,null,null,null,""]
["",null,null,null,null,null,null,""]
["",null,null,null,null,null,null,{"$f":"IF(OR(F15440<>0,G15440),H15439+F15440-G15440,\"\")","v":""}]
["",null,null,null,null,null,null,""]
["",null,null,null,null,null,null,""]
["",null,null,null,null,null,null,""]
["",null,null,null,null,null,null,""]
["",null,null,null,null,null,null,""]
["",null,null,null,null,null,null,""]
["",null,null,null,null,null,null,""]
["",null,null,null,null,null,null,""]
["",null,null,null,null,null,null,""]
["",null,null,null,null,null,null,""]
["",null,null,null,null,null,null,""]
["",null,null,null,null,null,null,""]
["",null,null,null,null,null,null,""]
["",null,null,null,null,null,null,""]
["",null,null,null,null,null,null,""]
["",null,null,null,null,null,null,""]
["",null,null,null,null,null,null,""]
["",null,null,null,null,null,null,""]
["",null,null,null,null,null,null,""]
["",null,null,null,null,null,null,""]
["",null,null,null,null,null,null,""]
["",null,null,null,null,null,null,""]
["",null,null,null,null,null,null,""]
["",null,null,null,null,null,null,""]
["",null,null,null,null,null,null,""]
["",null,null,null,null,null,null,""]
["",null,null,null,null,null,null,""]
["",null,null,null,null,null,null,{"$f":"IF(OR(F15632<>0,G15632),H15631+F15632-G15632,\"\")","v":""}]
["",null,null,null,null,null,null,""]
["",null,null,null,null,null,null,""]
["",null,null,null,null,null,null,""]
["",null,null,null,null,null,null,""]
["",null,null,null,null,null,null,""]
["",null,null,null,null,null,null,""]
["",null,null,null,null,null,null,""]
["",null,null,null,null,null,null,""]
["",null,null,null,null,null,null,""]
["",null,null,null,null,null,null,""]
["",null,null,null,null,null,null,""]
["",null,null,null,null,null,null,""]
["",null,null,null,null,null,null,""]
["",null,null,null,null,null,null,""]
["",null,null,null,null,null,null,""]
["",null,null,null,null,null,null,""]
["",null,null,null,null,null,null,""]
["",null,null,null,null,null,null,""]
["",null,null,null,null,null,null,""]
["",null,null,null,null,null,null,""]
["",null,null,null,null,null,null,""]
["",null,null,null,null,null,null,""]
["",null,null,null,null,null,null,""]
["",null,null,null,null,null,null,""]
["",null,null,null,null,null,null,""]
["",null,null,null,null,null,null,""]
["",null,null,null,null,null,null,""]
["",null,null,null,null,null,null,""]
["",null,null,null,null,null,null,""]
["",null,null,null,null,null,null,""]
["",null,null,null,null,null,null,""]
["",null,null,null,null,null,null,""]
["",null,null,null,null,null,null,""]
["",null,null,null,null,null,null,""]
["",null,null,null,null,null,null,""]
["",null,null,null,null,null,null,""]
["",null,null,null,null,null,null,""]
["",null,null,null,null,null,null,""]
["",null,null,null,null,null,null,""]
["",null,null,null,null,null,null,""]
["",null,null,null,null,null,null,""]
["",null,null,null,null,null,null,""]
["",null,null,null,null,null,null,""]
["",null,null,null,null,null,null,""]
["",null,null,null,null,null,null,""]
["",null,null,null,null,null,null,""]
["",null,null,null,null,null,null,""]
["",null,null,null,null,null,null,""]
["",null,null,null,null,null,null,""]
["",null,null,null,null,null,null,""]
["",null,null,null,null,null,null,""]
["",null,null,null,null,null,null,""]
["",null,null,null,null,null,null,""]
["",null,null,null,null,null,null,""]
["",null,null,null,null,null,null,""]
["",null,null,null,null,null,null,""]
["",null,null,null,null,null,null,""]
["",null,null,null,null,null,null,""]
["",null,null,null,null,null,null,""]
["",null,null,null,null,null,null,""]
["",null,null,null,null,null,null,""]
["",null,null,null,null,null,null,""]
["",null,null,null,null,null,null,""]
["",null,null,null,null,null,null,""]
["",null,null,null,null,null,null,""]
["",null,null,null,null,null,null,""]
["",null,null,null,null,null,null,""]
[{"$f":"IF(C15887=\"\",\"\",ROW()-13)","v":""},null,null,null,null,null,null,""]
["",null,null,null,null,null,null,{"$f":"IF(OR(F15888<>0,G15888),H15887+F15888-G15888,\"\")","v":""}]
["",null,null,null,null,null,null,""]
["",null,null,null,null,null,null,""]
["",null,null,null,null,null,null,""]
["",null,null,null,null,null,null,""]
["",null,null,null,null,null,null,""]
["",null,null,null,null,null,null,""]
["",null,null,null,null,null,null,""]
["",null,null,null,null,null,null,""]
["",null,null,null,null,null,null,""]
["",null,null,null,null,null,null,""]
["",null,null,null,null,null,null,""]
["",null,null,null,null,null,null,""]
["",null,null,null,null,null,null,""]
["",null,null,null,null,null,null,""]
["",null,null,null,null,null,null,""]
["",null,null,null,null,null,null,""]
["",null,null,null,null,null,null,""]
["",null,null,null,null,null,null,""]
["",null,null,null,null,null,null,""]
["",null,null,null,null,null,null,""]
["",null,null,null,null,null,null,""]
["",null,null,null,null,null,null,""]
["",null,null,null,null,null,null,""]
["",null,null,null,null,null,null,""]
["",null,null,null,null,null,null,""]
["",null,null,null,null,null,null,""]
["",null,null,null,null,null,null,""]
["",null,null,null,null,null,null,""]
["",null,null,null,null,null,null,""]
["",null,null,null,null,null,null,""]
["",null,null,null,null,null,null,""]
["",null,null,null,null,null,null,""]
["",null,null,null,null,null,null,""]
["",null,null,null,null,null,null,""]
["",null,null,null,null,null,null,""]
["",null,null,null,null,null,null,""]
["",null,null,null,null,null,null,""]
["",null,null,null,null,null,null,""]
["",null,null,null,null,null,null,""]
["",null,null,null,null,null,null,""]
["",null,null,null,null,null,null,""]
["",null,null,null,null,null,null,""]
["",null,null,null,null,null,null,""]
["",null,null,null,null,null,null,""]
["",null,null,null,null,null,null,""]
["",null,null,null,null,null,null,""]
["",null,null,null,null,null,null,""]
["",null,null,null,null,null,null,""]
["",null,null,null,null,null,null,""]
["",null,null,null,null,null,null,""]
["",null,null,null,null,null,null,""]
["",null,null,null,null,null,null,""]
["",null,null,null,null,null,null,""]
["",null,null,null,null,null,null,""]
["",null,null,null,null,null,null,""]
["",null,null,null,null,null,null,""]
["",null,null,null,null,null,null,""]
["",null,null,null,null,null,null,""]
["",null,null,null,null,null,null,""]
["",null,null,null,null,null,null,""]
["",null,null,null,null,null,null,""]
["",null,null,null,null,null,null,""]
[{"$f":"IF(C15951=\"\",\"\",ROW()-13)","v":""},null,null,null,null,null,null,""]
["",null,null,null,null,null,null,{"$f":"IF(OR(F15952<>0,G15952),H15951+F15952-G15952,\"\")","v":""}]
["",null,null,null,null,null,null,""]
["",null,null,null,null,null,null,""]
["",null,null,null,null,null,null,""]
["",null,null,null,null,null,null,""]
["",null,null,null,null,null,null,""]
["",null,null,null,null,null,null,""]
["",null,null,null,null,null,null,""]
["",null,null,null,null,null,null,""]
["",null,null,null,null,null,null,""]
["",null,null,null,null,null,null,""]
["",null,null,null,null,null,null,""]
["",null,null,null,null,null,null,""]
["",null,null,null,null,null,null,""]
["",null,null,null,null,null,null,""]
["",null,null,null,null,null,null,""]
["",null,null,null,null,null,null,""]
["",null,null,null,null,null,null,""]
["",null,null,null,null,null,null,""]
["",null,null,null,null,null,null,""]
["",null,null,null,null,null,null,""]
["",null,null,null,null,null,null,""]
["",null,null,null,null,null,null,""]
["",null,null,null,null,null,null,""]
["",null,null,null,null,null,null,""]
["",null,null,null,null,null,null,""]
["",null,null,null,null,null,null,""]
["",null,null,null,null,null,null,""]
["",null,null,null,null,null,null,""]
["",null,null,null,null,null,null,""]
["",null,null,null,null,null,null,""]
["",null,null,null,null,null,null,""]
["",null,null,null,null,null,null,""]
["",null,null,null,null,null,null,""]
["",null,null,null,null,null,null,""]
["",null,null,null,null,null,null,""]
["",null,null,null,null,null,null,""]
["",null,null,null,null,null,null,""]
["",null,null,null,null,null,null,""]
["",null,null,null,null,null,null,""]
["",null,null,null,null,null,null,""]
["",null,null,null,null,null,null,""]
["",null,null,null,null,null,null,""]
["",null,null,null,null,null,null,""]
["",null,null,null,null,null,null,""]
["",null,null,null,null,null,null,""]
["",null,null,null,null,null,null,""]
["",null,null,null,null,null,null,""]
["",null,null,null,null,null,null,""]
["",null,null,null,null,null,null,""]
["",null,null,null,null,null,null,""]
["",null,null,null,null,null,null,""]
["",null,null,null,null,null,null,""]
["",null,null,null,null,null,null,""]
["",null,null,null,null,null,null,""]
["",null,null,null,null,null,null,""]
["",null,null,null,null,null,null,""]
["",null,null,null,null,null,null,""]
["",null,null,null,null,null,null,""]
["",null,null,null,null,null,null,""]
["",null,null,null,null,null,null,""]
["",null,null,null,null,null,null,""]
["",null,null,null,null,null,null,""]
[{"$f":"IF(C16015=\"\",\"\",ROW()-13)","v":""},null,null,null,null,null,null,""]
["",null,null,null,null,null,null,{"$f":"IF(OR(F16016<>0,G16016),H16015+F16016-G16016,\"\")","v":""}]
["",null,null,null,null,null,null,""]
["",null,null,null,null,null,null,""]
["",null,null,null,null,null,null,""]
["",null,null,null,null,null,null,""]
["",null,null,null,null,null,null,""]
["",null,null,null,null,null,null,""]
["",null,null,null,null,null,null,""]
["",null,null,null,null,null,null,""]
["",null,null,null,null,null,null,""]
["",null,null,null,null,null,null,""]
["",null,null,null,null,null,null,""]
["",null,null,null,null,null,null,""]
["",null,null,null,null,null,null,""]
["",null,null,null,null,null,null,""]
["",null,null,null,null,null,null,""]
["",null,null,null,null,null,null,""]
["",null,null,null,null,null,null,""]
["",null,null,null,null,null,null,""]
["",null,null,null,null,null,null,""]
["",null,null,null,null,null,null,""]
["",null,null,null,null,null,null,""]
["",null,null,null,null,null,null,""]
["",null,null,null,null,null,null,""]
["",null,null,null,null,null,null,""]
["",null,null,null,null,null,null,""]
["",null,null,null,null,null,null,""]
["",null,null,null,null,null,null,""]
["",null,null,null,null,null,null,""]
["",null,null,null,null,null,null,""]
["",null,null,null,null,null,null,""]
["",null,null,null,null,null,null,""]
["",null,null,null,null,null,null,""]
["",null,null,null,null,null,null,""]
["",null,null,null,null,null,null,""]
["",null,null,null,null,null,null,""]
["",null,null,null,null,null,null,""]
["",null,null,null,null,null,null,""]
["",null,null,null,null,null,null,""]
["",null,null,null,null,null,null,""]
["",null,null,null,null,null,null,""]
["",null,null,null,null,null,null,""]
["",null,null,null,null,null,null,""]
["",null,null,null,null,null,null,""]
["",null,null,null,null,null,null,""]
["",null,null,null,null,null,null,""]
["",null,null,null,null,null,null,""]
["",null,null,null,null,null,null,""]
["",null,null,null,null,null,null,""]
["",null,null,null,null,null,null,""]
["",null,null,null,null,null,null,""]
["",null,null,null,null,null,null,""]
["",null,null,null,null,null,null,""]
["",null,null,null,null,null,null,""]
["",null,null,null,null,null,null,""]
["",null,null,null,null,null,null,""]
["",null,null,null,null,null,null,""]
["",null,null,null,null,null,null,""]
["",null,null,null,null,null,null,""]
["",null,null,null,null,null,null,""]
["",null,null,null,null,null,null,""]
["",null,null,null,null,null,null,""]
["",null,null,null,null,null,null,""]
[{"$f":"IF(C16079=\"\",\"\",ROW()-13)","v":""},null,null,null,null,null,null,""]
["",null,null,null,null,null,null,{"$f":"IF(OR(F16080<>0,G16080),H16079+F16080-G16080,\"\")","v":""}]
["",null,null,null,null,null,null,""]
["",null,null,null,null,null,null,""]
["",null,null,null,null,null,null,""]
["",null,null,null,null,null,null,""]
["",null,null,null,null,null,null,""]
["",null,null,null,null,null,null,""]
["",null,null,null,null,null,null,""]
["",null,null,null,null,null,null,""]
["",null,null,null,null,null,null,""]
["",null,null,null,null,null,null,""]
["",null,null,null,null,null,null,""]
["",null,null,null,null,null,null,""]
["",null,null,null,null,null,null,""]
["",null,null,null,null,null,null,""]
["",null,null,null,null,null,null,""]
["",null,null,null,null,null,null,""]
["",null,null,null,null,null,null,""]
["",null,null,null,null,null,null,""]
["",null,null,null,null,null,null,""]
["",null,null,null,null,null,null,""]
["",null,null,null,null,null,null,""]
["",null,null,null,null,null,null,""]
["",null,null,null,null,null,null,""]
["",null,null,null,null,null,null,""]
["",null,null,null,null,null,null,""]
["",null,null,null,null,null,null,""]
["",null,null,null,null,null,null,""]
["",null,null,null,null,null,null,""]
["",null,null,null,null,null,null,""]
["",null,null,null,null,null,null,""]
["",null,null,null,null,null,null,""]
["",null,null,null,null,null,null,""]
["",null,null,null,null,null,null,""]
["",null,null,null,null,null,null,""]
["",null,null,null,null,null,null,""]
["",null,null,null,null,null,null,""]
["",null,null,null,null,null,null,""]
["",null,null,null,null,null,null,""]
["",null,null,null,null,null,null,""]
["",null,null,null,null,null,null,""]
["",null,null,null,null,null,null,""]
["",null,null,null,null,null,null,""]
["",null,null,null,null,null,null,""]
["",null,null,null,null,null,null,""]
["",null,null,null,null,null,null,""]
["",null,null,null,null,null,null,""]
["",null,null,null,null,null,null,""]
["",null,null,null,null,null,null,""]
["",null,null,null,null,null,null,""]
["",null,null,null,null,null,null,""]
["",null,null,null,null,null,null,""]
["",null,null,null,null,null,null,""]
["",null,null,null,null,null,null,""]
["",null,null,null,null,null,null,""]
["",null,null,null,null,null,null,""]
["",null,null,null,null,null,null,""]
["",null,null,null,null,null,null,""]
["",null,null,null,null,null,null,""]
["",null,null,null,null,null,null,""]
["",null,null,null,null,null,null,""]
["",null,null,null,null,null,null,""]
["",null,null,null,null,null,null,""]
[{"$f":"IF(C16143=\"\",\"\",ROW()-13)","v":""},null,null,null,null,null,null,""]
["",null,null,null,null,null,null,{"$f":"IF(OR(F16144<>0,G16144),H16143+F16144-G16144,\"\")","v":""}]
["",null,null,null,null,null,null,""]
["",null,null,null,null,null,null,""]
["",null,null,null,null,null,null,""]
["",null,null,null,null,null,null,""]
["",null,null,null,null,null,null,""]
["",null,null,null,null,null,null,""]
["",null,null,null,null,null,null,""]
["",null,null,null,null,null,null,""]
["",null,null,null,null,null,null,""]
["",null,null,null,null,null,null,""]
["",null,null,null,null,null,null,""]
["",null,null,null,null,null,null,""]
["",null,null,null,null,null,null,""]
["",null,null,null,null,null,null,""]
["",null,null,null,null,null,null,""]
["",null,null,null,null,null,null,""]
["",null,null,null,null,null,null,""]
["",null,null,null,null,null,null,""]
["",null,null,null,null,null,null,""]
["",null,null,null,null,null,null,""]
["",null,null,null,null,null,null,""]
["",null,null,null,null,null,null,""]
["",null,null,null,null,null,null,""]
["",null,null,null,null,null,null,""]
["",null,null,null,null,null,null,""]
["",null,null,null,null,null,null,""]
["",null,null,null,null,null,null,""]
["",null,null,null,null,null,null,""]
["",null,null,null,null,null,null,""]
["",null,null,null,null,null,null,""]
["",null,null,null,null,null,null,""]
["",null,null,null,null,null,null,""]
["",null,null,null,null,null,null,""]
["",null,null,null,null,null,null,""]
["",null,null,null,null,null,null,""]
["",null,null,null,null,null,null,""]
["",null,null,null,null,null,null,""]
["",null,null,null,null,null,null,""]
["",null,null,null,null,null,null,""]
["",null,null,null,null,null,null,""]
["",null,null,null,null,null,null,""]
["",null,null,null,null,null,null,""]
["",null,null,null,null,null,null,""]
["",null,null,null,null,null,null,""]
["",null,null,null,null,null,null,""]
["",null,null,null,null,null,null,""]
["",null,null,null,null,null,null,""]
["",null,null,null,null,null,null,""]
["",null,null,null,null,null,null,""]
["",null,null,null,null,null,null,""]
["",null,null,null,null,null,null,""]
["",null,null,null,null,null,null,""]
["",null,null,null,null,null,null,""]
["",null,null,null,null,null,null,""]
["",null,null,null,null,null,null,""]
["",null,null,null,null,null,null,""]
["",null,null,null,null,null,null,""]
["",null,null,null,null,null,null,""]
["",null,null,null,null,null,null,""]
["",null,null,null,null,null,null,""]
["",null,null,null,null,null,null,""]
["",null,null,null,null,null,null,""]
[{"$f":"IF(C16207=\"\",\"\",ROW()-13)","v":""},null,null,null,null,null,null,""]
["",null,null,null,null,null,null,{"$f":"IF(OR(F16208<>0,G16208),H16207+F16208-G16208,\"\")","v":""}]
["",null,null,null,null,null,null,""]
["",null,null,null,null,null,null,""]
["",null,null,null,null,null,null,""]
["",null,null,null,null,null,null,""]
["",null,null,null,null,null,null,""]
["",null,null,null,null,null,null,""]
["",null,null,null,null,null,null,""]
["",null,null,null,null,null,null,""]
["",null,null,null,null,null,null,""]
["",null,null,null,null,null,null,""]
["",null,null,null,null,null,null,""]
["",null,null,null,null,null,null,""]
["",null,null,null,null,null,null,""]
["",null,null,null,null,null,null,""]
["",null,null,null,null,null,null,""]
["",null,null,null,null,null,null,""]
["",null,null,null,null,null,null,""]
["",null,null,null,null,null,null,""]
["",null,null,null,null,null,null,""]
["",null,null,null,null,null,null,""]
["",null,null,null,null,null,null,""]
["",null,null,null,null,null,null,""]
["",null,null,null,null,null,null,""]
["",null,null,null,null,null,null,""]
["",null,null,null,null,null,null,""]
["",null,null,null,null,null,null,""]
["",null,null,null,null,null,null,""]
["",null,null,null,null,null,null,""]
["",null,null,null,null,null,null,""]
["",null,null,null,null,null,null,""]
["",null,null,null,null,null,null,""]
["",null,null,null,null,null,null,""]
["",null,null,null,null,null,null,""]
["",null,null,null,null,null,null,""]
["",null,null,null,null,null,null,""]
["",null,null,null,null,null,null,""]
["",null,null,null,null,null,null,""]
["",null,null,null,null,null,null,""]
["",null,null,null,null,null,null,""]
["",null,null,null,null,null,null,""]
["",null,null,null,null,null,null,""]
["",null,null,null,null,null,null,""]
["",null,null,null,null,null,null,""]
["",null,null,null,null,null,null,""]
["",null,null,null,null,null,null,""]
["",null,null,null,null,null,null,""]
["",null,null,null,null,null,null,""]
["",null,null,null,null,null,null,""]
["",null,null,null,null,null,null,""]
["",null,null,null,null,null,null,""]
["",null,null,null,null,null,null,""]
["",null,null,null,null,null,null,""]
["",null,null,null,null,null,null,""]
["",null,null,null,null,null,null,""]
["",null,null,null,null,null,null,""]
["",null,null,null,null,null,null,""]
["",null,null,null,null,null,null,""]
["",null,null,null,null,null,null,""]
["",null,null,null,null,null,null,""]
["",null,null,null,null,null,null,""]
["",null,null,null,null,null,null,""]
["",null,null,null,null,null,null,""]
[{"$f":"IF(C16271=\"\",\"\",ROW()-13)","v":""},null,null,null,null,null,null,""]
["",null,null,null,null,null,null,{"$f":"IF(OR(F16272<>0,G16272),H16271+F16272-G16272,\"\")","v":""}]
["",null,null,null,null,null,null,""]
["",null,null,null,null,null,null,""]
["",null,null,null,null,null,null,""]
["",null,null,null,null,null,null,""]
["",null,null,null,null,null,null,""]
["",null,null,null,null,null,null,""]
["",null,null,null,null,null,null,""]
["",null,null,null,null,null,null,""]
["",null,null,null,null,null,null,""]
["",null,null,null,null,null,null,""]
["",null,null,null,null,null,null,""]
["",null,null,null,null,null,null,""]
["",null,null,null,null,null,null,""]
["",null,null,null,null,null,null,""]
["",null,null,null,null,null,null,""]
["",null,null,null,null,null,null,""]
["",null,null,null,null,null,null,""]
["",null,null,null,null,null,null,""]
["",null,null,null,null,null,null,""]
["",null,null,null,null,null,null,""]
["",null,null,null,null,null,null,""]
["",null,null,null,null,null,null,""]
["",null,null,null,null,null,null,""]
["",null,null,null,null,null,null,""]
["",null,null,null,null,null,null,""]
["",null,null,null,null,null,null,""]
["",null,null,null,null,null,null,""]
["",null,null,null,null,null,null,""]
["",null,null,null,null,null,null,""]
["",null,null,null,null,null,null,""]
["",null,null,null,null,null,null,""]
["",null,null,null,null,null,null,""]
["",null,null,null,null,null,null,""]
["",null,null,null,null,null,null,""]
["",null,null,null,null,null,null,""]
["",null,null,null,null,null,null,""]
["",null,null,null,null,null,null,""]
["",null,null,null,null,null,null,""]
["",null,null,null,null,null,null,""]
["",null,null,null,null,null,null,""]
["",null,null,null,null,null,null,""]
["",null,null,null,null,null,null,""]
["",null,null,null,null,null,null,""]
["",null,null,null,null,null,null,""]
["",null,null,null,null,null,null,""]
["",null,null,null,null,null,null,""]
["",null,null,null,null,null,null,""]
["",null,null,null,null,null,null,""]
["",null,null,null,null,null,null,""]
["",null,null,null,null,null,null,""]
["",null,null,null,null,null,null,""]
["",null,null,null,null,null,null,""]
["",null,null,null,null,null,null,""]
["",null,null,null,null,null,null,""]
["",null,null,null,null,null,null,""]
["",null,null,null,null,null,null,""]
["",null,null,null,null,null,null,""]
["",null,null,null,null,null,null,""]
["",null,null,null,null,null,null,""]
["",null,null,null,null,null,null,""]
["",null,null,null,null,null,null,""]
["",null,null,null,null,null,null,""]
[{"$f":"IF(C16335=\"\",\"\",ROW()-13)","v":""},null,null,null,null,null,null,""]
["",null,null,null,null,null,null,{"$f":"IF(OR(F16336<>0,G16336),H16335+F16336-G16336,\"\")","v":""}]
["",null,null,null,null,null,null,""]
["",null,null,null,null,null,null,""]
["",null,null,null,null,null,null,""]
["",null,null,null,null,null,null,""]
["",null,null,null,null,null,null,""]
["",null,null,null,null,null,null,""]
["",null,null,null,null,null,null,""]
["",null,null,null,null,null,null,""]
["",null,null,null,null,null,null,""]
["",null,null,null,null,null,null,""]
["",null,null,null,null,null,null,""]
["",null,null,null,null,null,null,""]
["",null,null,null,null,null,null,{"$f":"IF(OR(F16349<>0,G16349),H16348+F16349-G16349,\"\")","v":""}]
["",null,null,null,null,null,null,{"$f":"IF(OR(F16350<>0,G16350),H16349+F16350-G16350,\"\")","v":""}]